Workbook

Sheet Sample Portfolio and Netting
B2: Product | C2: Combined Commodity | D2: Period Code | E2: Tier | F2: Call/Put | G2: Strike Price | H2: Contract Volume | I2: Net Position | J2: Scanning Range | K2: Single Margin Parameter (SMP) Tier | L2: Composite Delta | M2: Original Delta | N2: Original Delta (Gross) Scaled | O2: Original Delta (Net) Scaled
B3: P5TC | C3: P5TC | D3: 202305 | E3: Tier 2 | H3: 1 | I3: -50 | J3: =Tiers!G6 -> 4220.594159 | K3: =+J3/H3 -> 4220.594159 | L3: 1 | M3: =H3*ABS(I3)*L3 -> 50 | N3: =(H3*ABS(I3)*L3)/100 -> 0.5 | O3: =(H3*I3*L3)/100 -> -0.5
B4: P5TC | C4: P5TC | D4: 202307 | E4: Tier 3 | H4: 1 | I4: 100 | J4: =+Tiers!G8 -> 1527.953466 | K4: =J4/H4 -> 1527.953466 | L4: 1 | M4: =H4*ABS(I4)*L4 -> 100 | N4: =(H4*ABS(I4)*L4)/100 -> 1 | O4: =(H4*I4*L4)/100 -> 1
B5: P5TC | C5: P5TC | D5: 202310 | E5: Tier 3 | H5: 1 | I5: -75 | J5: =+Tiers!G11 -> 1527.953466 | K5: =J5/H5 -> 1527.953466 | L5: 1 | M5: =H5*ABS(I5)*L5 -> 75 | N5: =(H5*ABS(I5)*L5)/100 -> 0.75 | O5: =(H5*I5*L5)/100 -> -0.75

Sheet Tiers
B2: Combined Commodity P5TC
B3: Tier | C3: Start Period | D3: End Period | E3: Period Code | F3: SMP | G3: SMP [TIER] | H3: IntraCharge
B4: 1 | C4: 202303 | D4: 202303 | E4: 202303 | F4: 5071.41 | G4: 5071.41 | H4: 0
B5: 2 | C5: 202304 | D5: 202306 | E5: 202304 | F5: 5071.412242 | G5: =+SUM($F$5:$F$7)/3 -> 4220.594159 | H5: =+SUMIF('Intra Charge'!D:D,IFERROR(VLOOKUP(E5,'Intra Charge'!B:D,3,FALSE),VLOOKUP(E5,'Intra Charge'!C:D,2,FALSE)),'Intra Charge'!N:N) -> 3368.443695
E6: 202305 | F6: 4075.200575 | G6: =+SUM($F$5:$F$7)/3 -> 4220.594159
E7: 202306 | F7: 3515.169659 | G7: 4220.594159
B8: 3 | C8: 202307 | D8: 202412 | E8: 202307 | F8: 2827.935685 | G8: =+SUM($F$8:$F$25)/18 -> 1527.953466 | H8: =+SUMIF('Intra Charge'!D:D,IFERROR(VLOOKUP(E8,'Intra Charge'!B:D,3,FALSE),VLOOKUP(E8,'Intra Charge'!C:D,2,FALSE)),'Intra Charge'!N:N) -> 1263.240371
E9: 202308 | F9: 2407.387248 | G9: =+SUM($F$8:$F$25)/18 -> 1527.953466
E10: 202309 | F10: 2556.329672 | G10: 1527.953466
E11: 202310 | F11: 2191.136609 | G11: 1527.953466
E12: 202311 | F12: 1975.81128 | G12: 1527.953466
E13: 202312 | F13: 1827.619991 | G13: 1527.953466
E14: 202401 | F14: 1424.423858 | G14: 1527.953466
E15: 202402 | F15: 1290.75451 | G15: 1527.953466
E16: 202403 | F16: 1203.601093 | G16: 1527.953466
E17: 202404 | F17: 1255.679777 | G17: 1527.953466
E18: 202405 | F18: 1180.827555 | G18: 1527.953466
E19: 202406 | F19: 1097.647533 | G19: 1527.953466
E20: 202407 | F20: 982.5932659 | G20: 1527.953466
E21: 202408 | F21: 968.2563874 | G21: 1527.953466
E22: 202409 | F22: 930.5254678 | G22: 1527.953466
E23: 202410 | F23: 891.3249366 | G23: 1527.953466
E24: 202411 | F24: 1153.089995 | G24: 1527.953466
E25: 202412 | F25: 1338.217524 | G25: 1527.953466

Sheet Intra Charge
A1: Product | B1: PeriodA | C1: PeriodB | D1: TierA | E1: TierB | F1: SMPB | G1: SMPA | H1: Credit | I1: SMP_Tier | J1: NumberTier | K1: Gross Margin | L1: Net Margin | M1: NM/GM | N1: IntraCharge
A2: P5TC | B2: 202304 | C2: 202305 | D2: 2 | E2: 2 | F2: 4075.200575 | G2: 5071.412242 | H2: 0.6 | I2: =+VLOOKUP(B2,Tiers!E:G,3,FALSE) -> 4220.594159 | J2: =+COUNTIF(D:D,D2) -> 3 | K2: =+G2+F2 -> 9146.612817 | L2: =+K2-2*H2*MIN(F2,G2) -> 4256.372127 | M2: =+L2/K2 -> 0.4653495466 | N2: =2*I2*M2/J2 -> 1309.367719
A3: P5TC | B3: 202304 | C3: 202306 | D3: 2 | E3: 2 | F3: 3515.169659 | G3: 5071.412242 | H3: 0.61 | I3: =+VLOOKUP(B3,Tiers!E:G,3,FALSE) -> 4220.594159 | J3: 3 | K3: 8586.581901 | L3: 4298.074918 | M3: =+L3/K3 -> 0.5005571445 | N3: =2*I3*M3/J3 -> 1408.432373
A4: P5TC | B4: 202305 | C4: 202306 | D4: 2 | E4: 2 | F4: 3515.169659 | G4: 4075.200575 | H4: 0.83 | I4: =+VLOOKUP(B4,Tiers!E:G,3,FALSE) -> 4220.594159 | J4: 3 | K4: 7590.370233 | L4: 1755.1886 | M4: 0.2312388653 | N4: 650.6436028
A5: P5TC | B5: 202307 | C5: 202308 | D5: 3 | E5: 3 | F5: 2407.387248 | G5: 2827.935685 | H5: 0.77 | I5: =+VLOOKUP(B5,Tiers!E:G,3,FALSE) -> 1527.953466 | J5: 153 | K5: 5235.322934 | L5: 1527.946571 | M5: 0.2918533567 | N5: 5.829259449
A6: P5TC | B6: 202307 | C6: 202309 | D6: 3 | E6: 3 | F6: 2556.329672 | G6: 2827.935685 | H6: 0.75 | I6: =+VLOOKUP(B6,Tiers!E:G,3,FALSE) -> 1527.953466 | J6: 153 | K6: 5384.265357 | L6: 1549.770849 | M6: 0.2878332969 | N6: 5.7489658
A7: P5TC | B7: 202307 | C7: 202310 | D7: 3 | E7: 3 | F7: 2191.136609 | G7: 2827.935685 | H7: 0.75 | I7: =+VLOOKUP(B7,Tiers!E:G,3,FALSE) -> 1527.953466 | J7: 153 | K7: 5019.072294 | L7: 1732.367381 | M7: 0.3451568895 | N7: 6.893904125
A8: P5TC | B8: 202307 | C8: 202311 | D8: 3 | E8: 3 | F8: 1975.81128 | G8: 2827.935685 | H8: 0.77 | I8: =+VLOOKUP(B8,Tiers!E:G,3,FALSE) -> 1527.953466 | J8: 153 | K8: 4803.746966 | L8: 1760.997594 | M8: 0.3665883334 | N8: 7.321959668
A9: P5TC | B9: 202307 | C9: 202312 | D9: 3 | E9: 3 | F9: 1827.619991 | G9: 2827.935685 | H9: 0.78 | I9: =+VLOOKUP(B9,Tiers!E:G,3,FALSE) -> 1527.953466 | J9: 153 | K9: 4655.555677 | L9: 1804.46849 | M9: 0.3875946537 | N9: 7.741524112
A10: P5TC | B10: 202307 | C10: 202401 | D10: 3 | E10: 3 | F10: 1424.423858 | G10: 2827.935685 | H10: 0.76 | I10: =+VLOOKUP(B10,Tiers!E:G,3,FALSE) -> 1527.953466 | J10: 153 | K10: 4252.359543 | L10: 2087.235279 | M10: 0.4908416746 | N10: 9.803702457
A11: P5TC | B11: 202307 | C11: 202402 | D11: 3 | E11: 3 | F11: 1290.75451 | G11: 2827.935685 | H11: 0.75 | I11: =+VLOOKUP(B11,Tiers!E:G,3,FALSE) -> 1527.953466 | J11: 153 | K11: 4118.690195 | L11: 2182.558431 | M11: 0.5299156594 | N11: 10.58413684
A12: P5TC | B12: 202307 | C12: 202403 | D12: 3 | E12: 3 | F12: 1203.601093 | G12: 2827.935685 | H12: 0.73 | I12: =+VLOOKUP(B12,Tiers!E:G,3,FALSE) -> 1527.953466 | J12: 153 | K12: 4031.536778 | L12: 2274.279183 | M12: 0.5641221469 | N12: 11.2673515
A13: P5TC | B13: 202307 | C13: 202404 | D13: 3 | E13: 3 | F13: 1255.679777 | G13: 2827.935685 | H13: 0.73 | I13: =+VLOOKUP(B13,Tiers!E:G,3,FALSE) -> 1527.953466 | J13: 153 | K13: 4083.615462 | L13: 2250.322988 | M13: 0.5510614329 | N13: 11.00648662
A14: P5TC | B14: 202307 | C14: 202405 | D14: 3 | E14: 3 | F14: 1180.827555 | G14: 2827.935685 | H14: 0.71 | I14: =+VLOOKUP(B14,Tiers!E:G,3,FALSE) -> 1527.953466 | J14: 153 | K14: 4008.76324 | L14: 2331.988112 | M14: 0.5817225844 | N14: 11.6188894
A15: P5TC | B15: 202307 | C15: 202406 | D15: 3 | E15: 3 | F15: 1097.647533 | G15: 2827.935685 | H15: 0.71 | I15: =+VLOOKUP(B15,Tiers!E:G,3,FALSE) -> 1527.953466 | J15: 153 | K15: 3925.583218 | L15: 2366.923722 | M15: 0.6029482984 | N15: 12.04283585
A16: P5TC | B16: 202307 | C16: 202407 | D16: 3 | E16: 3 | F16: 982.5932659 | G16: 2827.935685 | H16: 0.71 | I16: =+VLOOKUP(B16,Tiers!E:G,3,FALSE) -> 1527.953466 | J16: 153 | K16: 3810.528951 | L16: 2415.246514 | M16: 0.6338349727 | N16: 12.65974305
A17: P5TC | B17: 202307 | C17: 202408 | D17: 3 | E17: 3 | F17: 968.2563874 | G17: 2827.935685 | H17: 0.69 | I17: =+VLOOKUP(B17,Tiers!E:G,3,FALSE) -> 1527.953466 | J17: 153 | K17: 3796.192073 | L17: 2459.998258 | M17: 0.6480173319 | N17: 12.94301083
A18: P5TC | B18: 202307 | C18: 202409 | D18: 3 | E18: 3 | F18: 930.5254678 | G18: 2827.935685 | H18: 0.66 | I18: =+VLOOKUP(B18,Tiers!E:G,3,FALSE) -> 1527.953466 | J18: 153 | K18: 3758.461153 | L18: 2530.167536 | M18: 0.6731924137 | N18: 13.44583898
A19: P5TC | B19: 202307 | C19: 202410 | D19: 3 | E19: 3 | F19: 891.3249366 | G19: 2827.935685 | H19: 0.58 | I19: =+VLOOKUP(B19,Tiers!E:G,3,FALSE) -> 1527.953466 | J19: 153 | K19: 3719.260622 | L19: 2685.323696 | M19: 0.7220047124 | N19: 14.42077912
A20: P5TC | B20: 202307 | C20: 202411 | D20: 3 | E20: 3 | F20: 1153.089995 | G20: 2827.935685 | H20: 0.58 | I20: =+VLOOKUP(B20,Tiers!E:G,3,FALSE) -> 1527.953466 | J20: 153 | K20: 3981.02568 | L20: 2643.441286 | M20: 0.6640101066 | N20: 13.26243848
A21: P5TC | B21: 202307 | C21: 202412 | D21: 3 | E21: 3 | F21: 1338.217524 | G21: 2827.935685 | H21: 0.59 | I21: =+VLOOKUP(B21,Tiers!E:G,3,FALSE) -> 1527.953466 | J21: 153 | K21: 4166.15321 | L21: 2587.056531 | M21: 0.6209700894 | N21: 12.40278955
A22: P5TC | B22: 202308 | C22: 202309 | D22: 3 | E22: 3 | F22: 2556.329672 | G22: 2407.387248 | H22: 0.7 | I22: =+VLOOKUP(B22,Tiers!E:G,3,FALSE) -> 1527.953466 | J22: 153 | K22: 4963.71692 | L22: 1593.374773 | M22: 0.3210043599 | N22: 6.411499664
A23: P5TC | B23: 202308 | C23: 202310 | D23: 3 | E23: 3 | F23: 2191.136609 | G23: 2407.387248 | H23: 0.69 | I23: =+VLOOKUP(B23,Tiers!E:G,3,FALSE) -> 1527.953466 | J23: 153 | K23: 4598.523857 | L23: 1574.755337 | M23: 0.3424480085 | N23: 6.839798974
A24: P5TC | B24: 202308 | C24: 202311 | D24: 3 | E24: 3 | F24: 1975.81128 | G24: 2407.387248 | H24: 0.74 | I24: =+VLOOKUP(B24,Tiers!E:G,3,FALSE) -> 1527.953466 | J24: 153 | K24: 4383.198528 | L24: 1458.997834 | M24: 0.3328614536 | N24: 6.648324337
A25: P5TC | B25: 202308 | C25: 202312 | D25: 3 | E25: 3 | F25: 1827.619991 | G25: 2407.387248 | H25: 0.75 | I25: =+VLOOKUP(B25,Tiers!E:G,3,FALSE) -> 1527.953466 | J25: 153 | K25: 4235.007239 | L25: 1493.577253 | M25: 0.3526740731 | N25: 7.044046697
A26: P5TC | B26: 202308 | C26: 202401 | D26: 3 | E26: 3 | F26: 1424.423858 | G26: 2407.387248 | H26: 0.73 | I26: =+VLOOKUP(B26,Tiers!E:G,3,FALSE) -> 1527.953466 | J26: 153 | K26: 3831.811106 | L26: 1752.152274 | M26: 0.4572647829 | N26: 9.133062875
A27: P5TC | B27: 202308 | C27: 202402 | D27: 3 | E27: 3 | F27: 1290.75451 | G27: 2407.387248 | H27: 0.73 | I27: =+VLOOKUP(B27,Tiers!E:G,3,FALSE) -> 1527.953466 | J27: 153 | K27: 3698.141758 | L27: 1813.640174 | M27: 0.4904193221 | N27: 9.795266705
A28: P5TC | B28: 202308 | C28: 202403 | D28: 3 | E28: 3 | F28: 1203.601093 | G28: 2407.387248 | H28: 0.71 | I28: =+VLOOKUP(B28,Tiers!E:G,3,FALSE) -> 1527.953466 | J28: 153 | K28: 3610.988341 | L28: 1901.874789 | M28: 0.5266909249 | N28: 10.51972842
A29: P5TC | B29: 202308 | C29: 202404 | D29: 3 | E29: 3 | F29: 1255.679777 | G29: 2407.387248 | H29: 0.71 | I29: =+VLOOKUP(B29,Tiers!E:G,3,FALSE) -> 1527.953466 | J29: 153 | K29: 3663.067025 | L29: 1880.001742 | M29: 0.5132315977 | N29: 10.25090194
A30: P5TC | B30: 202308 | C30: 202405 | D30: 3 | E30: 3 | F30: 1180.827555 | G30: 2407.387248 | H30: 0.71 | I30: =+VLOOKUP(B30,Tiers!E:G,3,FALSE) -> 1527.953466 | J30: 153 | K30: 3588.214803 | L30: 1911.439675 | M30: 0.532699345 | N30: 10.63973608
A31: P5TC | B31: 202308 | C31: 202406 | D31: 3 | E31: 3 | F31: 1097.647533 | G31: 2407.387248 | H31: 0.71 | I31: =+VLOOKUP(B31,Tiers!E:G,3,FALSE) -> 1527.953466 | J31: 153 | K31: 3505.034781 | L31: 1946.375284 | M31: 0.5553084081 | N31: 11.09131251
A32: P5TC | B32: 202308 | C32: 202407 | D32: 3 | E32: 3 | F32: 982.5932659 | G32: 2407.387248 | H32: 0.7 | I32: =+VLOOKUP(B32,Tiers!E:G,3,FALSE) -> 1527.953466 | J32: 153 | K32: 3389.980514 | L32: 2014.349942 | M32: 0.5942069382 | N32: 11.86824249
A33: P5TC | B33: 202308 | C33: 202408 | D33: 3 | E33: 3 | F33: 968.2563874 | G33: 2407.387248 | H33: 0.68 | I33: =+VLOOKUP(B33,Tiers!E:G,3,FALSE) -> 1527.953466 | J33: 153 | K33: 3375.643635 | L33: 2058.814949 | M33: 0.6099029314 | N33: 12.18174246
A34: P5TC | B34: 202308 | C34: 202409 | D34: 3 | E34: 3 | F34: 930.5254678 | G34: 2407.387248 | H34: 0.67 | I34: =+VLOOKUP(B34,Tiers!E:G,3,FALSE) -> 1527.953466 | J34: =+COUNTIF(D:D,D34) -> 153 | K34: =+G34+F34 -> 3337.912716 | L34: =+K34-2*H34*MIN(F34,G34) -> 2091.008589 | M34: 0.6264419615 | N34: 12.5120806
A35: P5TC | B35: 202308 | C35: 202410 | D35: 3 | E35: 3 | F35: 891.3249366 | G35: 2407.387248 | H35: 0.58 | I35: =+VLOOKUP(B35,Tiers!E:G,3,FALSE) -> 1527.953466 | J35: 153 | K35: 3298.712185 | L35: 2264.775258 | M35: 0.6865634622 | N35: 13.71290224
A36: P5TC | B36: 202308 | C36: 202411 | D36: 3 | E36: 3 | F36: 1153.089995 | G36: 2407.387248 | H36: 0.58 | I36: =+VLOOKUP(B36,Tiers!E:G,3,FALSE) -> 1527.953466 | J36: 153 | K36: 3560.477243 | L36: 2222.892849 | M36: 0.6243244086 | N36: 12.4697862
A37: P5TC | B37: 202308 | C37: 202412 | D37: 3 | E37: 3 | F37: 1338.217524 | G37: 2407.387248 | H37: 0.58 | I37: =+VLOOKUP(B37,Tiers!E:G,3,FALSE) -> 1527.953466 | J37: 153 | K37: 3745.604772 | L37: 2193.272444 | M37: 0.5855589624 | N37: 11.69551433
A38: P5TC | B38: 202309 | C38: 202310 | D38: 3 | E38: 3 | F38: 2191.136609 | G38: 2556.329672 | H38: 0.83 | I38: =+VLOOKUP(B38,Tiers!E:G,3,FALSE) -> 1527.953466 | J38: 153 | K38: 4747.466281 | L38: 1110.17951 | M38: 0.2338467394 | N38: 4.670678902
A39: P5TC | B39: 202309 | C39: 202311 | D39: 3 | E39: 3 | F39: 1975.81128 | G39: 2556.329672 | H39: 0.79 | I39: =+VLOOKUP(B39,Tiers!E:G,3,FALSE) -> 1527.953466 | J39: 153 | K39: 4532.140952 | L39: 1410.35913 | M39: 0.3111904825 | N39: 6.215484657
A40: P5TC | B40: 202309 | C40: 202312 | D40: 3 | E40: 3 | F40: 1827.619991 | G40: 2556.329672 | H40: 0.79 | I40: =+VLOOKUP(B40,Tiers!E:G,3,FALSE) -> 1527.953466 | J40: 153 | K40: 4383.949663 | L40: 1496.310077 | M40: 0.3413155242 | N40: 6.817179583
A41: P5TC | B41: 202309 | C41: 202401 | D41: 3 | E41: 3 | F41: 1424.423858 | G41: 2556.329672 | H41: 0.75 | I41: =+VLOOKUP(B41,Tiers!E:G,3,FALSE) -> 1527.953466 | J41: 153 | K41: 3980.75353 | L41: 1844.117743 | M41: 0.4632584583 | N41: 9.252776039
A42: P5TC | B42: 202309 | C42: 202402 | D42: 3 | E42: 3 | F42: 1290.75451 | G42: 2556.329672 | H42: 0.72 | I42: =+VLOOKUP(B42,Tiers!E:G,3,FALSE) -> 1527.953466 | J42: 153 | K42: 3847.084182 | L42: 1988.397688 | M42: 0.5168583774 | N42: 10.32334051
A43: P5TC | B43: 202309 | C43: 202403 | D43: 3 | E43: 3 | F43: 1203.601093 | G43: 2556.329672 | H43: 0.72 | I43: =+VLOOKUP(B43,Tiers!E:G,3,FALSE) -> 1527.953466 | J43: 153 | K43: 3759.930765 | L43: 2026.745191 | M43: 0.539037902 | N43: 10.76633765
A44: P5TC | B44: 202309 | C44: 202404 | D44: 3 | E44: 3 | F44: 1255.679777 | G44: 2556.329672 | H44: 0.72 | I44: =+VLOOKUP(B44,Tiers!E:G,3,FALSE) -> 1527.953466 | J44: 153 | K44: 3812.009449 | L44: 2003.83057 | M44: 0.5256625402 | N44: 10.49918824
A45: P5TC | B45: 202309 | C45: 202405 | D45: 3 | E45: 3 | F45: 1180.827555 | G45: 2556.329672 | H45: 0.71 | I45: =+VLOOKUP(B45,Tiers!E:G,3,FALSE) -> 1527.953466 | J45: 153 | K45: 3737.157227 | L45: 2060.382099 | M45: 0.5513233653 | N45: 11.01171826
A46: P5TC | B46: 202309 | C46: 202406 | D46: 3 | E46: 3 | F46: 1097.647533 | G46: 2556.329672 | H46: 0.71 | I46: =+VLOOKUP(B46,Tiers!E:G,3,FALSE) -> 1527.953466 | J46: 153 | K46: 3653.977205 | L46: 2095.317708 | M46: 0.5734348057 | N46: 11.45335554
A47: P5TC | B47: 202309 | C47: 202407 | D47: 3 | E47: 3 | F47: 982.5932659 | G47: 2556.329672 | H47: 0.7 | I47: =+VLOOKUP(B47,Tiers!E:G,3,FALSE) -> 1527.953466 | J47: 153 | K47: 3538.922938 | L47: 2163.292366 | M47: 0.6112855249 | N47: 12.20935734
A48: P5TC | B48: 202309 | C48: 202408 | D48: 3 | E48: 3 | F48: 968.2563874 | G48: 2556.329672 | H48: 0.69 | I48: =+VLOOKUP(B48,Tiers!E:G,3,FALSE) -> 1527.953466 | J48: 153 | K48: 3524.586059 | L48: 2188.392245 | M48: 0.6208934065 | N48: 12.40125794
A49: P5TC | B49: 202309 | C49: 202409 | D49: 3 | E49: 3 | F49: 930.5254678 | G49: 2556.329672 | H49: 0.68 | I49: =+VLOOKUP(B49,Tiers!E:G,3,FALSE) -> 1527.953466 | J49: 153 | K49: 3486.85514 | L49: 2221.340504 | M49: 0.6370613101 | N49: 12.72418349
A50: P5TC | B50: 202309 | C50: 202410 | D50: 3 | E50: 3 | F50: 891.3249366 | G50: 2556.329672 | H50: 0.62 | I50: =+VLOOKUP(B50,Tiers!E:G,3,FALSE) -> 1527.953466 | J50: 153 | K50: 3447.654609 | L50: 2342.411687 | M50: 0.6794217963 | N50: 13.57025998
A51: P5TC | B51: 202309 | C51: 202411 | D51: 3 | E51: 3 | F51: 1153.089995 | G51: 2556.329672 | H51: 0.61 | I51: =+VLOOKUP(B51,Tiers!E:G,3,FALSE) -> 1527.953466 | J51: 153 | K51: 3709.419667 | L51: 2302.649873 | M51: 0.6207574446 | N51: 12.39854234
A52: P5TC | B52: 202309 | C52: 202412 | D52: 3 | E52: 3 | F52: 1338.217524 | G52: 2556.329672 | H52: 0.61 | I52: =+VLOOKUP(B52,Tiers!E:G,3,FALSE) -> 1527.953466 | J52: 153 | K52: 3894.547196 | L52: 2261.921817 | M52: 0.5807919901 | N52: 11.60030241
A53: P5TC | B53: 202310 | C53: 202311 | D53: 3 | E53: 3 | F53: 1975.81128 | G53: 2191.136609 | H53: 0.85 | I53: =+VLOOKUP(B53,Tiers!E:G,3,FALSE) -> 1527.953466 | J53: 153 | K53: 4166.947889 | L53: 808.0687125 | M53: 0.1939234025 | N53: 3.873280195
A54: P5TC | B54: 202310 | C54: 202312 | D54: 3 | E54: 3 | F54: 1827.619991 | G54: 2191.136609 | H54: 0.83 | I54: =+VLOOKUP(B54,Tiers!E:G,3,FALSE) -> 1527.953466 | J54: 153 | K54: 4018.7566 | L54: 984.9074145 | M54: 0.2450776478 | N54: 4.894996619
A55: P5TC | B55: 202310 | C55: 202401 | D55: 3 | E55: 3 | F55: 1424.423858 | G55: 2191.136609 | H55: 0.82 | I55: =+VLOOKUP(B55,Tiers!E:G,3,FALSE) -> 1527.953466 | J55: 153 | K55: 3615.560466 | L55: 1279.50534 | M55: 0.3538885192 | N55: 7.068303131
A56: P5TC | B56: 202310 | C56: 202402 | D56: 3 | E56: 3 | F56: 1290.75451 | G56: 2191.136609 | H56: 0.78 | I56: =+VLOOKUP(B56,Tiers!E:G,3,FALSE) -> 1527.953466 | J56: 153 | K56: 3481.891118 | L56: 1468.314083 | M56: 0.421700172 | N56: 8.422722083
A57: P5TC | B57: 202310 | C57: 202403 | D57: 3 | E57: 3 | F57: 1203.601093 | G57: 2191.136609 | H57: 0.77 | I57: =+VLOOKUP(B57,Tiers!E:G,3,FALSE) -> 1527.953466 | J57: 153 | K57: 3394.737702 | L57: 1541.192018 | M57: 0.4539944331 | N57: 9.067743367
A58: P5TC | B58: 202310 | C58: 202404 | D58: 3 | E58: 3 | F58: 1255.679777 | G58: 2191.136609 | H58: 0.76 | I58: =+VLOOKUP(B58,Tiers!E:G,3,FALSE) -> 1527.953466 | J58: 153 | K58: 3446.816386 | L58: 1538.183125 | M58: 0.4462619857 | N58: 8.913301277
A59: P5TC | B59: 202310 | C59: 202405 | D59: 3 | E59: 3 | F59: 1180.827555 | G59: 2191.136609 | H59: 0.74 | I59: =+VLOOKUP(B59,Tiers!E:G,3,FALSE) -> 1527.953466 | J59: 153 | K59: 3371.964163 | L59: 1624.339382 | M59: 0.4817190527 | N59: 9.621494067
A60: P5TC | B60: 202310 | C60: 202406 | D60: 3 | E60: 3 | F60: 1097.647533 | G60: 2191.136609 | H60: 0.74 | I60: =+VLOOKUP(B60,Tiers!E:G,3,FALSE) -> 1527.953466 | J60: 153 | K60: 3288.784141 | L60: 1664.265793 | M60: 0.5060428783 | N60: 10.10731987
A61: P5TC | B61: 202310 | C61: 202407 | D61: 3 | E61: 3 | F61: 982.5932659 | G61: 2191.136609 | H61: 0.74 | I61: =+VLOOKUP(B61,Tiers!E:G,3,FALSE) -> 1527.953466 | J61: 153 | K61: 3173.729874 | L61: 1719.491841 | M61: 0.5417889704 | N61: 10.82128543
A62: P5TC | B62: 202310 | C62: 202408 | D62: 3 | E62: 3 | F62: 968.2563874 | G62: 2191.136609 | H62: 0.71 | I62: =+VLOOKUP(B62,Tiers!E:G,3,FALSE) -> 1527.953466 | J62: 153 | K62: 3159.392996 | L62: 1784.468926 | M62: 0.5648138513 | N62: 11.28116708
A63: P5TC | B63: 202310 | C63: 202409 | D63: 3 | E63: 3 | F63: 930.5254678 | G63: 2191.136609 | H63: 0.69 | I63: =+VLOOKUP(B63,Tiers!E:G,3,FALSE) -> 1527.953466 | J63: 153 | K63: 3121.662076 | L63: 1837.536931 | M63: 0.5886405658 | N63: 11.75706396
A64: P5TC | B64: 202310 | C64: 202410 | D64: 3 | E64: 3 | F64: 891.3249366 | G64: 2191.136609 | H64: 0.62 | I64: =+VLOOKUP(B64,Tiers!E:G,3,FALSE) -> 1527.953466 | J64: 153 | K64: 3082.461545 | L64: 1977.218624 | M64: 0.6414414567 | N64: 12.81166924
A65: P5TC | B65: 202310 | C65: 202411 | D65: 3 | E65: 3 | F65: 1153.089995 | G65: 2191.136609 | H65: 0.62 | I65: =+VLOOKUP(B65,Tiers!E:G,3,FALSE) -> 1527.953466 | J65: 153 | K65: 3344.226603 | L65: 1914.39501 | M65: 0.5724477546 | N65: 11.43364092
A66: P5TC | B66: 202310 | C66: 202412 | D66: 3 | E66: 3 | F66: 1338.217524 | G66: 2191.136609 | H66: 0.63 | I66: =+VLOOKUP(B66,Tiers!E:G,3,FALSE) -> 1527.953466 | J66: =+COUNTIF(D:D,D66) -> 153 | K66: =+G66+F66 -> 3529.354133 | L66: =+K66-2*H66*MIN(F66,G66) -> 1843.200052 | M66: 0.5222485426 | N66: 10.43099962
A67: P5TC | B67: 202311 | C67: 202312 | D67: 3 | E67: 3 | F67: 1827.619991 | G67: 1975.81128 | H67: 0.9 | I67: =+VLOOKUP(B67,Tiers!E:G,3,FALSE) -> 1527.953466 | J67: 153 | K67: 3803.431271 | L67: 513.7152872 | M67: =+L67/K67 -> 0.1350662732 | N67: =2*I67*M67/J67 -> 2.697712161
A68: P5TC | B68: 202311 | C68: 202401 | D68: 3 | E68: 3 | F68: 1424.423858 | G68: 1975.81128 | H68: 0.86 | I68: =+VLOOKUP(B68,Tiers!E:G,3,FALSE) -> 1527.953466 | J68: 153 | K68: 3400.235138 | L68: 950.2261025 | M68: 0.2794589386 | N68: 5.581702663
A69: P5TC | B69: 202311 | C69: 202402 | D69: 3 | E69: 3 | F69: 1290.75451 | G69: 1975.81128 | H69: 0.83 | I69: =+VLOOKUP(B69,Tiers!E:G,3,FALSE) -> 1527.953466 | J69: 153 | K69: 3266.56579 | L69: 1123.913304 | M69: 0.344065718 | N69: 6.872109887
A70: P5TC | B70: 202311 | C70: 202403 | D70: 3 | E70: 3 | F70: 1203.601093 | G70: 1975.81128 | H70: 0.81 | I70: =+VLOOKUP(B70,Tiers!E:G,3,FALSE) -> 1527.953466 | J70: 153 | K70: 3179.412373 | L70: 1229.578602 | M70: 0.3867314013 | N70: 7.724282158
A71: P5TC | B71: 202311 | C71: 202404 | D71: 3 | E71: 3 | F71: 1255.679777 | G71: 1975.81128 | H71: 0.8 | I71: =+VLOOKUP(B71,Tiers!E:G,3,FALSE) -> 1527.953466 | J71: 153 | K71: 3231.491057 | L71: 1222.403414 | M71: 0.3782784455 | N71: 7.555449176
A72: P5TC | B72: 202311 | C72: 202405 | D72: 3 | E72: 3 | F72: 1180.827555 | G72: 1975.81128 | H72: 0.78 | I72: =+VLOOKUP(B72,Tiers!E:G,3,FALSE) -> 1527.953466 | J72: 153 | K72: 3156.638835 | L72: 1314.547849 | M72: 0.4164391045 | N72: 8.317641477
A73: P5TC | B73: 202311 | C73: 202406 | D73: 3 | E73: 3 | F73: 1097.647533 | G73: 1975.81128 | H73: 0.77 | I73: =+VLOOKUP(B73,Tiers!E:G,3,FALSE) -> 1527.953466 | J73: 153 | K73: 3073.458813 | L73: 1383.081612 | M73: 0.4500081819 | N73: 8.988124983
A74: P5TC | B74: 202311 | C74: 202407 | D74: 3 | E74: 3 | F74: 982.5932659 | G74: 1975.81128 | H74: 0.77 | I74: =+VLOOKUP(B74,Tiers!E:G,3,FALSE) -> 1527.953466 | J74: 153 | K74: 2958.404546 | L74: 1445.210916 | M74: 0.4885102406 | N74: 9.757136147
A75: P5TC | B75: 202311 | C75: 202408 | D75: 3 | E75: 3 | F75: 968.2563874 | G75: 1975.81128 | H75: 0.75 | I75: =+VLOOKUP(B75,Tiers!E:G,3,FALSE) -> 1527.953466 | J75: 153 | K75: 2944.067667 | L75: 1491.683086 | M75: 0.5066741851 | N75: 10.11992911
A76: P5TC | B76: 202311 | C76: 202409 | D76: 3 | E76: 3 | F76: 930.5254678 | G76: 1975.81128 | H76: 0.72 | I76: =+VLOOKUP(B76,Tiers!E:G,3,FALSE) -> 1527.953466 | J76: 153 | K76: 2906.336748 | L76: 1566.380074 | M76: 0.5389534008 | N76: 10.76464989
A77: P5TC | B77: 202311 | C77: 202410 | D77: 3 | E77: 3 | F77: 891.3249366 | G77: 1975.81128 | H77: 0.65 | I77: =+VLOOKUP(B77,Tiers!E:G,3,FALSE) -> 1527.953466 | J77: 153 | K77: 2867.136217 | L77: 1708.413799 | M77: 0.5958607021 | N77: 11.90127353
A78: P5TC | B78: 202311 | C78: 202411 | D78: 3 | E78: 3 | F78: 1153.089995 | G78: 1975.81128 | H78: 0.63 | I78: =+VLOOKUP(B78,Tiers!E:G,3,FALSE) -> 1527.953466 | J78: 153 | K78: 3128.901275 | L78: 1676.007881 | M78: 0.5356538076 | N78: 10.6987463
A79: P5TC | B79: 202311 | C79: 202412 | D79: 3 | E79: 3 | F79: 1338.217524 | G79: 1975.81128 | H79: 0.65 | I79: =+VLOOKUP(B79,Tiers!E:G,3,FALSE) -> 1527.953466 | J79: 153 | K79: 3314.028804 | L79: 1574.346023 | M79: 0.4750550209 | N79: 9.488391708
A80: P5TC | B80: 202312 | C80: 202401 | D80: 3 | E80: 3 | F80: 1424.423858 | G80: 1827.619991 | H80: 0.9 | I80: =+VLOOKUP(B80,Tiers!E:G,3,FALSE) -> 1527.953466 | J80: 153 | K80: 3252.043849 | L80: 688.0809048 | M80: 0.2115841412 | N80: 4.226022508
A81: P5TC | B81: 202312 | C81: 202402 | D81: 3 | E81: 3 | F81: 1290.75451 | G81: 1827.619991 | H81: 0.85 | I81: =+VLOOKUP(B81,Tiers!E:G,3,FALSE) -> 1527.953466 | J81: 153 | K81: 3118.374501 | L81: 924.0918344 | M81: 0.2963376702 | N81: 5.918825756
A82: P5TC | B82: 202312 | C82: 202403 | D82: 3 | E82: 3 | F82: 1203.601093 | G82: 1827.619991 | H82: 0.83 | I82: =+VLOOKUP(B82,Tiers!E:G,3,FALSE) -> 1527.953466 | J82: 153 | K82: 3031.221084 | L82: 1033.24327 | M82: 0.3408670107 | N82: 6.808221313
A83: P5TC | B83: 202312 | C83: 202404 | D83: 3 | E83: 3 | F83: 1255.679777 | G83: 1827.619991 | H83: 0.81 | I83: =+VLOOKUP(B83,Tiers!E:G,3,FALSE) -> 1527.953466 | J83: 153 | K83: 3083.299768 | L83: 1049.098529 | M83: 0.3402518757 | N83: 6.795935068
A84: P5TC | B84: 202312 | C84: 202405 | D84: 3 | E84: 3 | F84: 1180.827555 | G84: 1827.619991 | H84: 0.79 | I84: =+VLOOKUP(B84,Tiers!E:G,3,FALSE) -> 1527.953466 | J84: 153 | K84: 3008.447546 | L84: 1142.740009 | M84: 0.379843754 | N84: 7.586713469
A85: P5TC | B85: 202312 | C85: 202406 | D85: 3 | E85: 3 | F85: 1097.647533 | G85: 1827.619991 | H85: 0.78 | I85: =+VLOOKUP(B85,Tiers!E:G,3,FALSE) -> 1527.953466 | J85: 153 | K85: 2925.267524 | L85: 1212.937373 | M85: 0.4146415201 | N85: 8.281737879
A86: P5TC | B86: 202312 | C86: 202407 | D86: 3 | E86: 3 | F86: 982.5932659 | G86: 1827.619991 | H86: 0.77 | I86: =+VLOOKUP(B86,Tiers!E:G,3,FALSE) -> 1527.953466 | J86: 153 | K86: 2810.213257 | L86: 1297.019627 | M86: 0.4615377941 | N86: 9.218408786
A87: P5TC | B87: 202312 | C87: 202408 | D87: 3 | E87: 3 | F87: 968.2563874 | G87: 1827.619991 | H87: 0.75 | I87: =+VLOOKUP(B87,Tiers!E:G,3,FALSE) -> 1527.953466 | J87: 153 | K87: 2795.876378 | L87: 1343.491797 | M87: 0.4805261805 | N87: 9.597668536
A88: P5TC | B88: 202312 | C88: 202409 | D88: 3 | E88: 3 | F88: 930.5254678 | G88: 1827.619991 | H88: 0.73 | I88: =+VLOOKUP(B88,Tiers!E:G,3,FALSE) -> 1527.953466 | J88: 153 | K88: 2758.145459 | L88: 1399.578276 | M88: 0.5074345413 | N88: 10.1351159
A89: P5TC | B89: 202312 | C89: 202410 | D89: 3 | E89: 3 | F89: 891.3249366 | G89: 1827.619991 | H89: 0.66 | I89: =+VLOOKUP(B89,Tiers!E:G,3,FALSE) -> 1527.953466 | J89: 153 | K89: 2718.944928 | L89: 1542.396011 | M89: 0.5672774008 | N89: 11.33037217
A90: P5TC | B90: 202312 | C90: 202411 | D90: 3 | E90: 3 | F90: 1153.089995 | G90: 1827.619991 | H90: 0.64 | I90: =+VLOOKUP(B90,Tiers!E:G,3,FALSE) -> 1527.953466 | J90: 153 | K90: 2980.709986 | L90: 1504.754793 | M90: 0.5048309966 | N90: 10.08311465
A91: P5TC | B91: 202312 | C91: 202412 | D91: 3 | E91: 3 | F91: 1338.217524 | G91: 1827.619991 | H91: 0.65 | I91: =+VLOOKUP(B91,Tiers!E:G,3,FALSE) -> 1527.953466 | J91: 153 | K91: 3165.837515 | L91: 1426.154734 | M91: 0.4504826059 | N91: 8.997600772
A92: P5TC | B92: 202401 | C92: 202402 | D92: 3 | E92: 3 | F92: 1290.75451 | G92: 1424.423858 | H92: 0.88 | I92: =+VLOOKUP(B92,Tiers!E:G,3,FALSE) -> 1527.953466 | J92: 153 | K92: 2715.178367 | L92: 443.4504305 | M92: 0.1633227621 | N92: 3.262086018
A93: P5TC | B93: 202401 | C93: 202403 | D93: 3 | E93: 3 | F93: 1203.601093 | G93: 1424.423858 | H93: 0.85 | I93: =+VLOOKUP(B93,Tiers!E:G,3,FALSE) -> 1527.953466 | J93: 153 | K93: 2628.024951 | L93: 581.9030927 | M93: 0.2214222101 | N93: 4.422520697
A94: P5TC | B94: 202401 | C94: 202404 | D94: 3 | E94: 3 | F94: 1255.679777 | G94: 1424.423858 | H94: 0.82 | I94: =+VLOOKUP(B94,Tiers!E:G,3,FALSE) -> 1527.953466 | J94: 153 | K94: 2680.103635 | L94: 620.7888005 | M94: 0.2316286551 | N94: 4.626376554
A95: P5TC | B95: 202401 | C95: 202405 | D95: 3 | E95: 3 | F95: 1180.827555 | G95: 1424.423858 | H95: 0.79 | I95: =+VLOOKUP(B95,Tiers!E:G,3,FALSE) -> 1527.953466 | J95: 153 | K95: 2605.251412 | L95: 739.5438761 | M95: 0.2838666059 | N95: 5.669738097
A96: P5TC | B96: 202401 | C96: 202406 | D96: 3 | E96: 3 | F96: 1097.647533 | G96: 1424.423858 | H96: 0.77 | I96: =+VLOOKUP(B96,Tiers!E:G,3,FALSE) -> 1527.953466 | J96: 153 | K96: 2522.07139 | L96: 831.6941901 | M96: 0.3297663156 | N96: 6.586504377
A97: P5TC | B97: 202401 | C97: 202407 | D97: 3 | E97: 3 | F97: 982.5932659 | G97: 1424.423858 | H97: 0.78 | I97: =+VLOOKUP(B97,Tiers!E:G,3,FALSE) -> 1527.953466 | J97: 153 | K97: 2407.017124 | L97: 874.1716289 | M97: 0.3631763232 | N97: 7.253810742
A98: P5TC | B98: 202401 | C98: 202408 | D98: 3 | E98: 3 | F98: 968.2563874 | G98: 1424.423858 | H98: 0.74 | I98: =+VLOOKUP(B98,Tiers!E:G,3,FALSE) -> 1527.953466 | J98: =+COUNTIF(D:D,D98) -> 153 | K98: =+G98+F98 -> 2392.680245 | L98: =+K98-2*H98*MIN(F98,G98) -> 959.6607918 | M98: 0.4010819222 | N98: 8.010908668
A99: P5TC | B99: 202401 | C99: 202409 | D99: 3 | E99: 3 | F99: 930.5254678 | G99: 1424.423858 | H99: 0.73 | I99: =+VLOOKUP(B99,Tiers!E:G,3,FALSE) -> 1527.953466 | J99: 153 | K99: 2354.949326 | L99: 996.3821426 | M99: 0.4231013091 | N99: 8.450707343
A100: P5TC | B100: 202401 | C100: 202410 | D100: 3 | E100: 3 | F100: 891.3249366 | G100: 1424.423858 | H100: 0.62 | I100: =+VLOOKUP(B100,Tiers!E:G,3,FALSE) -> 1527.953466 | J100: 153 | K100: 2315.748794 | L100: 1210.505873 | M100: 0.5227276274 | N100: 10.4405685
A101: P5TC | B101: 202401 | C101: 202411 | D101: 3 | E101: 3 | F101: 1153.089995 | G101: 1424.423858 | H101: 0.62 | I101: =+VLOOKUP(B101,Tiers!E:G,3,FALSE) -> 1527.953466 | J101: 153 | K101: 2577.513852 | L101: 1147.682259 | M101: 0.4452671546 | N101: 8.89343127
A102: P5TC | B102: 202401 | C102: 202412 | D102: 3 | E102: 3 | F102: 1338.217524 | G102: 1424.423858 | H102: 0.62 | I102: =+VLOOKUP(B102,Tiers!E:G,3,FALSE) -> 1527.953466 | J102: 153 | K102: 2762.641382 | L102: 1103.251652 | M102: 0.3993466757 | N102: 7.976250159
A103: P5TC | B103: 202402 | C103: 202403 | D103: 3 | E103: 3 | F103: 1203.601093 | G103: 1290.75451 | H103: 0.89 | I103: =+VLOOKUP(B103,Tiers!E:G,3,FALSE) -> 1527.953466 | J103: 153 | K103: 2494.355602 | L103: 351.945657 | M103: 0.1410968254 | N103: 2.818161875
A104: P5TC | B104: 202402 | C104: 202404 | D104: 3 | E104: 3 | F104: 1255.679777 | G104: 1290.75451 | H104: 0.85 | I104: =+VLOOKUP(B104,Tiers!E:G,3,FALSE) -> 1527.953466 | J104: 153 | K104: 2546.434287 | L104: 411.7786656 | M104: 0.1617079489 | N104: 3.229832955
A105: P5TC | B105: 202402 | C105: 202405 | D105: 3 | E105: 3 | F105: 1180.827555 | G105: 1290.75451 | H105: 0.82 | I105: =+VLOOKUP(B105,Tiers!E:G,3,FALSE) -> 1527.953466 | J105: 153 | K105: 2471.582064 | L105: 535.0248745 | M105: 0.216470609 | N105: 4.32362114
A106: P5TC | B106: 202402 | C106: 202406 | D106: 3 | E106: 3 | F106: 1097.647533 | G106: 1290.75451 | H106: 0.79 | I106: =+VLOOKUP(B106,Tiers!E:G,3,FALSE) -> 1527.953466 | J106: 153 | K106: 2388.402042 | L106: 654.1189406 | M106: 0.2738730452 | N106: 5.470134231
A107: P5TC | B107: 202402 | C107: 202407 | D107: 3 | E107: 3 | F107: 982.5932659 | G107: 1290.75451 | H107: 0.8 | I107: =+VLOOKUP(B107,Tiers!E:G,3,FALSE) -> 1527.953466 | J107: 153 | K107: 2273.347775 | L107: 701.19855 | M107: 0.3084431505 | N107: 6.160611514
A108: P5TC | B108: 202402 | C108: 202408 | D108: 3 | E108: 3 | F108: 968.2563874 | G108: 1290.75451 | H108: 0.78 | I108: =+VLOOKUP(B108,Tiers!E:G,3,FALSE) -> 1527.953466 | J108: 153 | K108: 2259.010897 | L108: 748.5309326 | M108: 0.3313533961 | N108: 6.61820353
A109: P5TC | B109: 202402 | C109: 202409 | D109: 3 | E109: 3 | F109: 930.5254678 | G109: 1290.75451 | H109: 0.75 | I109: =+VLOOKUP(B109,Tiers!E:G,3,FALSE) -> 1527.953466 | J109: 153 | K109: 2221.279977 | L109: 825.4917756 | M109: 0.3716288735 | N109: 7.422635624
A110: P5TC | B110: 202402 | C110: 202410 | D110: 3 | E110: 3 | F110: 891.3249366 | G110: 1290.75451 | H110: 0.64 | I110: =+VLOOKUP(B110,Tiers!E:G,3,FALSE) -> 1527.953466 | J110: 153 | K110: 2182.079446 | L110: 1041.183527 | M110: 0.4771519796 | N110: 9.530274784
A111: P5TC | B111: 202402 | C111: 202411 | D111: 3 | E111: 3 | F111: 1153.089995 | G111: 1290.75451 | H111: 0.62 | I111: =+VLOOKUP(B111,Tiers!E:G,3,FALSE) -> 1527.953466 | J111: 153 | K111: 2443.844504 | L111: 1014.012911 | M111: 0.4149252987 | N111: 8.287405859
A112: P5TC | B112: 202402 | C112: 202412 | D112: 3 | E112: 3 | F112: 1338.217524 | G112: 1290.75451 | H112: 0.62 | I112: =+VLOOKUP(B112,Tiers!E:G,3,FALSE) -> 1527.953466 | J112: 153 | K112: 2628.972034 | L112: 1028.436442 | M112: 0.3911933747 | N112: 7.813402259
A113: P5TC | B113: 202403 | C113: 202404 | D113: 3 | E113: 3 | F113: 1255.679777 | G113: 1203.601093 | H113: 0.89 | I113: =+VLOOKUP(B113,Tiers!E:G,3,FALSE) -> 1527.953466 | J113: 153 | K113: 2459.28087 | L113: 316.8709245 | M113: 0.1288469847 | N113: 2.573492769
A114: P5TC | B114: 202403 | C114: 202405 | D114: 3 | E114: 3 | F114: 1180.827555 | G114: 1203.601093 | H114: 0.84 | I114: =+VLOOKUP(B114,Tiers!E:G,3,FALSE) -> 1527.953466 | J114: 153 | K114: 2384.428648 | L114: 400.6383558 | M114: 0.1680227908 | N114: 3.355960856
A115: P5TC | B115: 202403 | C115: 202406 | D115: 3 | E115: 3 | F115: 1097.647533 | G115: 1203.601093 | H115: 0.81 | I115: =+VLOOKUP(B115,Tiers!E:G,3,FALSE) -> 1527.953466 | J115: 153 | K115: 2301.248626 | L115: 523.0596227 | M115: 0.2272938338 | N115: 4.539796094
A116: P5TC | B116: 202403 | C116: 202407 | D116: 3 | E116: 3 | F116: 982.5932659 | G116: 1203.601093 | H116: 0.8 | I116: =+VLOOKUP(B116,Tiers!E:G,3,FALSE) -> 1527.953466 | J116: 153 | K116: 2186.194359 | L116: 614.0451334 | M116: 0.2808739904 | N116: 5.609965845
A117: P5TC | B117: 202403 | C117: 202408 | D117: 3 | E117: 3 | F117: 968.2563874 | G117: 1203.601093 | H117: 0.79 | I117: =+VLOOKUP(B117,Tiers!E:G,3,FALSE) -> 1527.953466 | J117: 153 | K117: 2171.85748 | L117: 642.0123883 | M117: 0.2956052108 | N117: 5.904196162
A118: P5TC | B118: 202403 | C118: 202409 | D118: 3 | E118: 3 | F118: 930.5254678 | G118: 1203.601093 | H118: 0.77 | I118: =+VLOOKUP(B118,Tiers!E:G,3,FALSE) -> 1527.953466 | J118: 153 | K118: 2134.126561 | L118: 701.1173403 | M118: 0.3285265988 | N118: 6.561743205
A119: P5TC | B119: 202403 | C119: 202410 | D119: 3 | E119: 3 | F119: 891.3249366 | G119: 1203.601093 | H119: 0.67 | I119: =+VLOOKUP(B119,Tiers!E:G,3,FALSE) -> 1527.953466 | J119: 153 | K119: 2094.92603 | L119: 900.5506145 | M119: 0.4298722732 | N119: 8.585945487
A120: P5TC | B120: 202403 | C120: 202411 | D120: 3 | E120: 3 | F120: 1153.089995 | G120: 1203.601093 | H120: 0.65 | I120: =+VLOOKUP(B120,Tiers!E:G,3,FALSE) -> 1527.953466 | J120: 153 | K120: 2356.691088 | L120: 857.6740946 | M120: 0.3639314881 | N120: 7.268893838
A121: P5TC | B121: 202403 | C121: 202412 | D121: 3 | E121: 3 | F121: 1338.217524 | G121: 1203.601093 | H121: 0.65 | I121: =+VLOOKUP(B121,Tiers!E:G,3,FALSE) -> 1527.953466 | J121: 153 | K121: 2541.818617 | L121: 977.1371964 | M121: 0.3844244392 | N121: 7.67820463
A122: P5TC | B122: 202404 | C122: 202405 | D122: 3 | E122: 3 | F122: 1180.827555 | G122: 1255.679777 | H122: 0.88 | I122: =+VLOOKUP(B122,Tiers!E:G,3,FALSE) -> 1527.953466 | J122: 153 | K122: 2436.507332 | L122: 358.2508355 | M122: 0.1470345814 | N122: 2.936758146
A123: P5TC | B123: 202404 | C123: 202406 | D123: 3 | E123: 3 | F123: 1097.647533 | G123: 1255.679777 | H123: 0.84 | I123: =+VLOOKUP(B123,Tiers!E:G,3,FALSE) -> 1527.953466 | J123: 153 | K123: 2353.32731 | L123: 509.2794548 | M123: 0.2164082543 | N123: 4.322375715
A124: P5TC | B124: 202404 | C124: 202407 | D124: 3 | E124: 3 | F124: 982.5932659 | G124: 1255.679777 | H124: 0.82 | I124: =+VLOOKUP(B124,Tiers!E:G,3,FALSE) -> 1527.953466 | J124: 153 | K124: 2238.273043 | L124: 626.8200869 | M124: 0.2800463012 | N124: 5.593434204
A125: P5TC | B125: 202404 | C125: 202408 | D125: 3 | E125: 3 | F125: 968.2563874 | G125: 1255.679777 | H125: 0.79 | I125: =+VLOOKUP(B125,Tiers!E:G,3,FALSE) -> 1527.953466 | J125: 153 | K125: 2223.936164 | L125: 694.0910724 | M125: 0.3121002678 | N125: 6.233656024
A126: P5TC | B126: 202404 | C126: 202409 | D126: 3 | E126: 3 | F126: 930.5254678 | G126: 1255.679777 | H126: 0.77 | I126: =+VLOOKUP(B126,Tiers!E:G,3,FALSE) -> 1527.953466 | J126: 153 | K126: 2186.205245 | L126: 753.1960244 | M126: 0.3445221011 | N126: 6.88122534
A127: P5TC | B127: 202404 | C127: 202410 | D127: 3 | E127: 3 | F127: 891.3249366 | G127: 1255.679777 | H127: 0.65 | I127: =+VLOOKUP(B127,Tiers!E:G,3,FALSE) -> 1527.953466 | J127: 153 | K127: 2147.004714 | L127: 988.2822961 | M127: 0.4603074645 | N127: 9.193835109
A128: P5TC | B128: 202404 | C128: 202411 | D128: 3 | E128: 3 | F128: 1153.089995 | G128: 1255.679777 | H128: 0.64 | I128: =+VLOOKUP(B128,Tiers!E:G,3,FALSE) -> 1527.953466 | J128: 153 | K128: 2408.769772 | L128: 932.8145785 | M128: 0.3872576738 | N128: 7.734793528
A129: P5TC | B129: 202404 | C129: 202412 | D129: 3 | E129: 3 | F129: 1338.217524 | G129: 1255.679777 | H129: 0.64 | I129: =+VLOOKUP(B129,Tiers!E:G,3,FALSE) -> 1527.953466 | J129: 153 | K129: 2593.897301 | L129: 986.6271867 | M129: 0.380364784 | N129: 7.597120131
A130: P5TC | B130: 202405 | C130: 202406 | D130: 3 | E130: 3 | F130: 1097.647533 | G130: 1180.827555 | H130: 0.88 | I130: =+VLOOKUP(B130,Tiers!E:G,3,FALSE) -> 1527.953466 | J130: =+COUNTIF(D:D,D130) -> 153 | K130: =+G130+F130 -> 2278.475087 | L130: =+K130-2*H130*MIN(F130,G130) -> 346.6154298 | M130: 0.1521260565 | N130: 3.038451441
A131: P5TC | B131: 202405 | C131: 202407 | D131: 3 | E131: 3 | F131: 982.5932659 | G131: 1180.827555 | H131: 0.85 | I131: =+VLOOKUP(B131,Tiers!E:G,3,FALSE) -> 1527.953466 | J131: 153 | K131: 2163.420821 | L131: 493.0122685 | M131: =+L131/K131 -> 0.2278855153 | N131: =2*I131*M131/J131 -> 4.551613895
A132: P5TC | B132: 202405 | C132: 202408 | D132: 3 | E132: 3 | F132: 968.2563874 | G132: 1180.827555 | H132: 0.81 | I132: =+VLOOKUP(B132,Tiers!E:G,3,FALSE) -> 1527.953466 | J132: 153 | K132: 2149.083942 | L132: 580.5085945 | M132: 0.270119088 | N132: 5.395155513
A133: P5TC | B133: 202405 | C133: 202409 | D133: 3 | E133: 3 | F133: 930.5254678 | G133: 1180.827555 | H133: 0.78 | I133: =+VLOOKUP(B133,Tiers!E:G,3,FALSE) -> 1527.953466 | J133: 153 | K133: 2111.353023 | L133: 659.7332927 | M133: 0.3124694382 | N133: 6.241029556
A134: P5TC | B134: 202405 | C134: 202410 | D134: 3 | E134: 3 | F134: 891.3249366 | G134: 1180.827555 | H134: 0.65 | I134: =+VLOOKUP(B134,Tiers!E:G,3,FALSE) -> 1527.953466 | J134: 153 | K134: 2072.152491 | L134: 913.4300737 | M134: 0.4408121881 | N134: 8.804451119
A135: P5TC | B135: 202405 | C135: 202411 | D135: 3 | E135: 3 | F135: 1153.089995 | G135: 1180.827555 | H135: 0.63 | I135: =+VLOOKUP(B135,Tiers!E:G,3,FALSE) -> 1527.953466 | J135: 153 | K135: 2333.917549 | L135: 881.0241561 | M135: 0.3774872666 | N135: 7.539646762
A136: P5TC | B136: 202405 | C136: 202412 | D136: 3 | E136: 3 | F136: 1338.217524 | G136: 1180.827555 | H136: 0.64 | I136: =+VLOOKUP(B136,Tiers!E:G,3,FALSE) -> 1527.953466 | J136: 153 | K136: 2519.045079 | L136: 1007.585809 | M136: 0.3999872084 | N136: 7.989043679
A137: P5TC | B137: 202406 | C137: 202407 | D137: 3 | E137: 3 | F137: 982.5932659 | G137: 1097.647533 | H137: 0.88 | I137: =+VLOOKUP(B137,Tiers!E:G,3,FALSE) -> 1527.953466 | J137: 153 | K137: 2080.240799 | L137: 350.8766506 | M137: 0.1686711706 | N137: 3.368911107
A138: P5TC | B138: 202406 | C138: 202408 | D138: 3 | E138: 3 | F138: 968.2563874 | G138: 1097.647533 | H138: 0.86 | I138: =+VLOOKUP(B138,Tiers!E:G,3,FALSE) -> 1527.953466 | J138: 153 | K138: 2065.90392 | L138: 400.5029338 | M138: 0.1938632915 | N138: 3.872079583
A139: P5TC | B139: 202406 | C139: 202409 | D139: 3 | E139: 3 | F139: 930.5254678 | G139: 1097.647533 | H139: 0.81 | I139: =+VLOOKUP(B139,Tiers!E:G,3,FALSE) -> 1527.953466 | J139: 153 | K139: 2028.173001 | L139: 520.7217426 | M139: 0.2567442435 | N139: 5.128016427
A140: P5TC | B140: 202406 | C140: 202410 | D140: 3 | E140: 3 | F140: 891.3249366 | G140: 1097.647533 | H140: 0.65 | I140: =+VLOOKUP(B140,Tiers!E:G,3,FALSE) -> 1527.953466 | J140: 153 | K140: 1988.972469 | L140: 830.2500517 | M140: 0.4174266183 | N140: 8.337365336
A141: P5TC | B141: 202406 | C141: 202411 | D141: 3 | E141: 3 | F141: 1153.089995 | G141: 1097.647533 | H141: 0.64 | I141: =+VLOOKUP(B141,Tiers!E:G,3,FALSE) -> 1527.953466 | J141: 153 | K141: 2250.737527 | L141: 845.7486855 | M141: 0.3757651326 | N141: 7.505250154
A142: P5TC | B142: 202406 | C142: 202412 | D142: 3 | E142: 3 | F142: 1338.217524 | G142: 1097.647533 | H142: 0.63 | I142: =+VLOOKUP(B142,Tiers!E:G,3,FALSE) -> 1527.953466 | J142: 153 | K142: 2435.865057 | L142: 1052.829166 | M142: 0.4322198238 | N142: 8.632833698
A143: P5TC | B143: 202407 | C143: 202408 | D143: 3 | E143: 3 | F143: 968.2563874 | G143: 982.5932659 | H143: 0.9 | I143: =+VLOOKUP(B143,Tiers!E:G,3,FALSE) -> 1527.953466 | J143: 153 | K143: 1950.849653 | L143: 207.988156 | M143: 0.106614139 | N143: 2.129430629
A144: P5TC | B144: 202407 | C144: 202409 | D144: 3 | E144: 3 | F144: 930.5254678 | G144: 982.5932659 | H144: 0.83 | I144: =+VLOOKUP(B144,Tiers!E:G,3,FALSE) -> 1527.953466 | J144: 153 | K144: 1913.118734 | L144: 368.4464571 | M144: 0.1925894356 | N144: 3.846636544
A145: P5TC | B145: 202407 | C145: 202410 | D145: 3 | E145: 3 | F145: 891.3249366 | G145: 982.5932659 | H145: 0.67 | I145: =+VLOOKUP(B145,Tiers!E:G,3,FALSE) -> 1527.953466 | J145: 153 | K145: 1873.918203 | L145: 679.5427875 | M145: 0.3626320437 | N145: 7.242939712
A146: P5TC | B146: 202407 | C146: 202411 | D146: 3 | E146: 3 | F146: 1153.089995 | G146: 982.5932659 | H146: 0.64 | I146: =+VLOOKUP(B146,Tiers!E:G,3,FALSE) -> 1527.953466 | J146: 153 | K146: 2135.683261 | L146: 877.9638802 | M146: 0.4110927385 | N146: 8.210857185
A147: P5TC | B147: 202407 | C147: 202412 | D147: 3 | E147: 3 | F147: 1338.217524 | G147: 982.5932659 | H147: 0.63 | I147: =+VLOOKUP(B147,Tiers!E:G,3,FALSE) -> 1527.953466 | J147: 153 | K147: 2320.81079 | L147: 1082.743275 | M147: 0.466536643 | N147: 9.318252035
A148: P5TC | B148: 202408 | C148: 202409 | D148: 3 | E148: 3 | F148: 930.5254678 | G148: 968.2563874 | H148: 0.88 | I148: =+VLOOKUP(B148,Tiers!E:G,3,FALSE) -> 1527.953466 | J148: 153 | K148: 1898.781855 | L148: 261.0570318 | M148: 0.1374865844 | N148: 2.746053636
A149: P5TC | B149: 202408 | C149: 202410 | D149: 3 | E149: 3 | F149: 891.3249366 | G149: 968.2563874 | H149: 0.69 | I149: =+VLOOKUP(B149,Tiers!E:G,3,FALSE) -> 1527.953466 | J149: 153 | K149: 1859.581324 | L149: 629.5529115 | M149: 0.338545512 | N149: 6.761853444
A150: P5TC | B150: 202408 | C150: 202411 | D150: 3 | E150: 3 | F150: 1153.089995 | G150: 968.2563874 | H150: 0.61 | I150: =+VLOOKUP(B150,Tiers!E:G,3,FALSE) -> 1527.953466 | J150: 153 | K150: 2121.346382 | L150: 940.0735894 | M150: 0.4431495004 | N150: 8.851134838
A151: P5TC | B151: 202408 | C151: 202412 | D151: 3 | E151: 3 | F151: 1338.217524 | G151: 968.2563874 | H151: 0.62 | I151: =+VLOOKUP(B151,Tiers!E:G,3,FALSE) -> 1527.953466 | J151: 153 | K151: 2306.473912 | L151: 1105.835991 | M151: 0.4794487316 | N151: 9.576148381
A152: P5TC | B152: 202409 | C152: 202410 | D152: 3 | E152: 3 | F152: 891.3249366 | G152: 930.5254678 | H152: 0.7 | I152: =+VLOOKUP(B152,Tiers!E:G,3,FALSE) -> 1527.953466 | J152: 153 | K152: 1821.850404 | L152: 573.9954932 | M152: 0.315061814 | N152: 6.292807721
A153: P5TC | B153: 202409 | C153: 202411 | D153: 3 | E153: 3 | F153: 1153.089995 | G153: 930.5254678 | H153: 0.62 | I153: =+VLOOKUP(B153,Tiers!E:G,3,FALSE) -> 1527.953466 | J153: 153 | K153: 2083.615462 | L153: 929.7638824 | M153: 0.4462262347 | N153: 8.912587214
A154: P5TC | B154: 202409 | C154: 202412 | D154: 3 | E154: 3 | F154: 1338.217524 | G154: 930.5254678 | H154: 0.61 | I154: =+VLOOKUP(B154,Tiers!E:G,3,FALSE) -> 1527.953466 | J154: 153 | K154: 2268.742992 | L154: 1133.501921 | M154: 0.4996167152 | N154: 9.978968518
A155: P5TC | B155: 202410 | C155: 202411 | D155: 3 | E155: 3 | F155: 1153.089995 | G155: 891.3249366 | H155: 0.74 | I155: =+VLOOKUP(B155,Tiers!E:G,3,FALSE) -> 1527.953466 | J155: 153 | K155: 2044.414931 | L155: 725.2540251 | M155: 0.3547489377 | N155: 7.085488482
A156: P5TC | B156: 202410 | C156: 202412 | D156: 3 | E156: 3 | F156: 1338.217524 | G156: 891.3249366 | H156: 0.71 | I156: =+VLOOKUP(B156,Tiers!E:G,3,FALSE) -> 1527.953466 | J156: 153 | K156: 2229.542461 | L156: 963.8610509 | M156: 0.4323133862 | N156: 8.634702442
A157: P5TC | B157: 202411 | C157: 202412 | D157: 3 | E157: 3 | F157: 1338.217524 | G157: 1153.089995 | H157: 0.77 | I157: =+VLOOKUP(B157,Tiers!E:G,3,FALSE) -> 1527.953466 | J157: 153 | K157: 2491.307519 | L157: 715.5489272 | M157: 0.2872182265 | N157: 5.736680845

Sheet Sample Portfolio and Netting_tm (hidden)
B2: Product | C2: Combined Commodity | D2: Period Code | E2: Call/Put | F2: Strike Price | G2: Contract Volume | H2: Net Position | I2: Tier | J2: Single Margin Parameter (SMP) | K2: Scanning Range | L2: Scanning Range Tier | M2: Composite Delta | N2: Original Delta | O2: Original Delta (Gross) Scaled | P2: Original Delta (Net) Scaled
B3: OP5M | C3: P5TC | D3: 202304 | E3: P | F3: 10000 | G3: 1 | H3: 1 | I3: 2 | J3: 5071.412242 | K3: =+J3*G3 -> 5071.412242 | L3: 4220.59 | M3: -0.001771 | N3: =G3*ABS(H3)*M3 -> -0.001771 | O3: =((G3*(H3)*M3)+(G4*(H4)*M4)+(G5*ABS(H5)*M5)+(G6*ABS(H6)*M6))/100 -> 0.00976738 | P3: =((G3*H3*M3)+(G4*H4*M4)+(G5*H5*M5)+(G6*(H6)*M6))/100 -> -0.01023262
B4: OP5M | C4: P5TC | D4: 202305 | E4: P | F4: 10000 | G4: 1 | H4: 1 | I4: 2 | J4: 4075.200575 | K4: =+J4*G4 -> 4075.200575 | L4: 4220.59 | M4: -0.007389 | N4: =G4*ABS(H4)*M4 -> -0.007389
B5: OP5M | C5: P5TC | D5: 202306 | E5: P | F5: 10000 | G5: 1 | H5: 1 | I5: 2 | J5: 3515.169659 | K5: 3515.169659 | L5: 4220.59 | M5: -0.014102 | N5: -0.014102 | P5: =(G5*H5*M5)/100 -> -0.00014102
B6: P5TC | C6: P5TC | D6: 202305 | G6: 1 | H6: -1 | I6: 2 | J6: 4075.200575 | K6: 4075.200575 | L6: 4220.59 | M6: 1 | N6: 1 | P6: =(G6*H6*M6)/100 -> -0.01
B7: OP5M | C7: P5TC | D7: 202307 | E7: P | F7: 10000 | G7: 1 | H7: 1 | I7: 3 | J7: 2827.935685 | K7: 2827.935685 | L7: 1527.95 | M7: -0.013019 | N7: -0.013019 | O7: =(G7*ABS(H7)*M7)/100 -> -0.00013019 | P7: -0.00013019

Sheet Risk Arrays and Scan Risk
M2: Risk Arrays
K3: Price Scan Change | M3: 0 | N3: 0 | O3: 0.3333333333 | P3: 0.3333333333 | Q3: -0.3333333333 | R3: -0.3333333333 | S3: 0.6666666667 | T3: 0.6666666667 | U3: -0.6666666667 | V3: -0.6666666667 | W3: 1 | X3: 1 | Y3: -1 | Z3: -1 | AA3: 3 | AB3: -3
K4: Vola Scan Change | M4: 1 | N4: -1 | O4: 1 | P4: -1 | Q4: 1 | R4: -1 | S4: 1 | T4: -1 | U4: 1 | V4: -1 | W4: 1 | X4: -1 | Y4: 1 | Z4: -1 | AA4: 1 | AB4: -1
K5: Weight | M5: 1 | N5: 1 | O5: 1 | P5: 1 | Q5: 1 | R5: 1 | S5: 1 | T5: 1 | U5: 1 | V5: 1 | W5: 1 | X5: 1 | Y5: 1 | Z5: 1 | AA5: 0.33 | AB5: 0.33
B6: Product | C6: Combined Commodity | D6: Period Code | E6: Call/Put | F6: Strike Price | G6: Contract Volume | H6: Net Position | I6: Tier | J6: Scanning Range | K6: SMP | L6: Composite Delta | M6: Scenario 1 | N6: Scenario 2 | O6: Scenario3 | P6: Scenario 4 | Q6: Scenario 5 | R6: Scenario 6 | S6: Scenario 7 | T6: Scenario 8 | U6: Scenario 9 | V6: Scenario 10 | W6: Scenario 11 | X6: Scenario 12 | Y6: Scenario 13 | Z6: Scenario 14 | AA6: Scenario 15 | AB6: Scenario 16 | AC6: Active Scenario | AD6: Scan Risk
B7: P5TC | C7: P5TC | D7: 202305 | G7: 1 | H7: =+'Sample Portfolio and Netting'!I3 -> -50 | I7: 2 | J7: =+Tiers!G6 -> 4220.594159 | K7: =+J7/G7 -> 4220.594159 | L7: 1 | M7: =-1*$H7*$J7*M$3*M$5 -> 0 | N7: 0 | O7: 70343.23598 | P7: 70343.23598 | Q7: -70343.23598 | R7: -70343.23598 | S7: 140686.472 | T7: 140686.472 | U7: -140686.472 | V7: -140686.472 | W7: 211029.7079 | X7: 211029.7079 | Y7: -211029.7079 | Z7: -211029.7079 | AA7: 208919.4108 | AB7: -208919.4108 | AC7: =MATCH(MAX(M7:AB7),M7:AB7,0) -> 11 | AD7: =MAX(M7:AB7) -> 211029.7079
B8: =+'Sample Portfolio and Netting'!B4 -> P5TC | C8: =+'Sample Portfolio and Netting'!C4 -> P5TC | D8: =+'Sample Portfolio and Netting'!D4 -> 202307 | G8: =+'Sample Portfolio and Netting'!H4 -> 1 | H8: =+'Sample Portfolio and Netting'!I4 -> 100 | I8: 3 | J8: =Tiers!G8 -> 1527.953466 | K8: =J8/G8 -> 1527.953466 | L8: 1 | M8: 0 | N8: 0 | O8: -50931.7822 | P8: -50931.7822 | Q8: 50931.7822 | R8: 50931.7822 | S8: -101863.5644 | T8: -101863.5644 | U8: 101863.5644 | V8: 101863.5644 | W8: -152795.3466 | X8: -152795.3466 | Y8: 152795.3466 | Z8: 152795.3466 | AA8: -151267.3931 | AB8: 151267.3931 | AC8: =MATCH(MAX((M8:AB8)+(M9:AB9)),(M8:AB8)+(M9:AB9),0) -> 13 | AD8: =MAX((M8:AB8)+(M9:AB9)) -> 38198.83665
B9: =+'Sample Portfolio and Netting'!B5 -> P5TC | C9: =+'Sample Portfolio and Netting'!C5 -> P5TC | D9: =+'Sample Portfolio and Netting'!D5 -> 202310 | G9: =+'Sample Portfolio and Netting'!H5 -> 1 | H9: =+'Sample Portfolio and Netting'!I5 -> -75 | I9: 3 | J9: =+Tiers!G11 -> 1527.953466 | K9: =J9/G9 -> 1527.953466 | L9: 1 | M9: 0 | N9: 0 | O9: 38198.83665 | P9: 38198.83665 | Q9: -38198.83665 | R9: -38198.83665 | S9: 76397.6733 | T9: 76397.6733 | U9: -76397.6733 | V9: -76397.6733 | W9: 114596.5099 | X9: 114596.5099 | Y9: -114596.5099 | Z9: -114596.5099 | AA9: 113450.5448 | AB9: -113450.5448

Sheet Risk Arrays and Scan Risk_tmp (hidden)
M2: Risk Arrays (By default for 1 Long Position)
K3: Price Scan Change | M3: 0 | N3: 0 | O3: 0.3333333333 | P3: 0.3333333333 | Q3: -0.3333333333 | R3: -0.3333333333 | S3: 0.6666666667 | T3: 0.6666666667 | U3: -0.6666666667 | V3: -0.6666666667 | W3: 1 | X3: 1 | Y3: -1 | Z3: -1 | AA3: 3 | AB3: -3
K4: Vola Scan Change | M4: 1 | N4: -1 | O4: 1 | P4: -1 | Q4: 1 | R4: -1 | S4: 1 | T4: -1 | U4: 1 | V4: -1 | W4: 1 | X4: -1 | Y4: 1 | Z4: -1 | AA4: 1 | AB4: -1
K5: Weight | M5: 1 | N5: 1 | O5: 1 | P5: 1 | Q5: 1 | R5: 1 | S5: 1 | T5: 1 | U5: 1 | V5: 1 | W5: 1 | X5: 1 | Y5: 1 | Z5: 1 | AA5: 0.33 | AB5: 0.33
B6: Product | C6: Combined Commodity | D6: Period Code | E6: Call/Put | F6: Strike Price | G6: Contract Value Factor | H6: Net Position | I6: Scanning Range [Tier] | J6: Tier | K6: SMP | L6: Composite Delta | M6: Scenario 1 | N6: Scenario 2 | O6: Scenario3 | P6: Scenario 4 | Q6: Scenario 5 | R6: Scenario 6 | S6: Scenario 7 | T6: Scenario 8 | U6: Scenario 9 | V6: Scenario 10 | W6: Scenario 11 | X6: Scenario 12 | Y6: Scenario 13 | Z6: Scenario 14 | AA6: Scenario 15 | AB6: Scenario 16 | AC6: Active Scenario | AD6: Scan Risk
B7: P5TC | C7: P5TC | D7: 202305 | G7: 1 | H7: -1 | I7: 4220.59 | J7: 2 | K7: =I7/G7 -> 4220.59 | L7: 1 | M7: =$K7*$G7*M$3*M$5 -> 0 | N7: 0 | O7: 1406.863333 | P7: 1406.863333 | Q7: -1406.863333 | R7: -1406.863333 | S7: 2813.726667 | T7: 2813.726667 | U7: -2813.726667 | V7: -2813.726667 | W7: 4220.59 | X7: 4220.59 | Y7: -4220.59 | Z7: -4220.59 | AA7: 4178.3841 | AB7: -4178.3841 | AC7: =-1*MIN((SIGN($H$7)*M7:AB7)+(SIGN($H$9)*M9:AB9)+(SIGN($H$8)*M8:AB8) +(SIGN($H$10)*M10:AB10)) -> 4242.09 | AD7: =-1*(H7*AC7)+(H8*AC8)+(H9*AC9)+(H10*AC10) -> 4242.09
B8: OP5M | C8: P5TC | D8: 202304 | E8: P | F8: 10000 | G8: 1 | H8: 1 | I8: 4220.59 | J8: 2 | K8: =I8/G8 -> 4220.59 | L8: -0.001771 | M8: =+'Risk Arrays Options'!C34 -> 29.00622971 | N8: =+'Risk Arrays Options'!D34 -> -0.03 | O8: =+'Risk Arrays Options'!E34 -> 12.64126874 | P8: =+'Risk Arrays Options'!F34 -> -0.03 | Q8: =+'Risk Arrays Options'!G34 -> 65.39716197 | R8: =+'Risk Arrays Options'!H34 -> -0.03 | S8: =+'Risk Arrays Options'!I34 -> 5.442939421 | T8: =+'Risk Arrays Options'!J34 -> -0.03 | U8: =+'Risk Arrays Options'!K34 -> 143.7125346 | V8: =+'Risk Arrays Options'!L34 -> -0.03 | W8: =+'Risk Arrays Options'!M34 -> 2.321214983 | X8: =+'Risk Arrays Options'!N34 -> -0.03 | Y8: =+'Risk Arrays Options'!O34 -> 304.5180748 | Z8: =+'Risk Arrays Options'!P34 -> -0.03 | AA8: =+'Risk Arrays Options'!Q34 -> -0.0099 | AB8: =+'Risk Arrays Options'!R34 -> 1940.567027
B9: OP5M | C9: P5TC | D9: 202305 | E9: P | F9: 10000 | G9: 1 | H9: 1 | I9: 4220.59 | J9: 2 | K9: =I9/G9 -> 4220.59 | L9: -0.007389 | M9: =+'Risk Arrays Options'!C44 -> 199.288287 | N9: =+'Risk Arrays Options'!D44 -> -4.83 | O9: =+'Risk Arrays Options'!E44 -> 137.2277775 | P9: =+'Risk Arrays Options'!F44 -> -4.83 | Q9: =+'Risk Arrays Options'!G44 -> 289.2637104 | R9: =+'Risk Arrays Options'!H44 -> -4.83 | S9: =+'Risk Arrays Options'!I44 -> 94.38394235 | T9: =+'Risk Arrays Options'!J44 -> -4.83 | U9: =+'Risk Arrays Options'!K44 -> 419.5936302 | V9: =+'Risk Arrays Options'!L44 -> -4.83 | W9: =+'Risk Arrays Options'!M44 -> 64.74293824 | X9: =+'Risk Arrays Options'!N44 -> -4.83 | Y9: =+'Risk Arrays Options'!O44 -> 607.7411591 | Z9: =+'Risk Arrays Options'!P44 -> -4.83 | AA9: =+'Risk Arrays Options'!Q44 -> -1.593826905 | AB9: =+'Risk Arrays Options'!R44 -> 1478.219528
B10: OP5M | C10: P5TC | D10: 202306 | E10: P | F10: 10000 | G10: 1 | H10: 1 | I10: 4220.59 | J10: 2 | K10: =I10/G10 -> 4220.59 | L10: -0.014102 | M10: =+'Risk Arrays Options'!C54 -> 376.4602794 | N10: =+'Risk Arrays Options'!D54 -> -16.64 | O10: =+'Risk Arrays Options'!E54 -> 285.3296438 | P10: =+'Risk Arrays Options'!F54 -> -16.64 | Q10: =+'Risk Arrays Options'!G54 -> 497.1300136 | R10: =+'Risk Arrays Options'!H54 -> -16.64 | S10: =+'Risk Arrays Options'!I54 -> 216.2956872 | T10: =+'Risk Arrays Options'!J54 -> -16.64 | U10: =+'Risk Arrays Options'!K54 -> 657.2849433 | V10: =+'Risk Arrays Options'!L54 -> -16.64 | W10: =+'Risk Arrays Options'!M54 -> 163.8139551 | X10: =+'Risk Arrays Options'!N54 -> -16.64 | Y10: =+'Risk Arrays Options'!O54 -> 870.1030129 | Z10: =+'Risk Arrays Options'!P54 -> -16.64 | AA10: =+'Risk Arrays Options'!Q54 -> -5.486926338 | AB10: =+'Risk Arrays Options'!R54 -> 1399.706561
B11: OP5M | C11: P5TC | D11: 202307 | E11: P | F11: 10000 | G11: 1 | H11: 1 | I11: 1527.95 | J11: 3 | K11: =I11/G11 -> 1527.95 | L11: -0.013019 | M11: =+'Risk Arrays Options'!C64 -> 532.4335342 | N11: =+'Risk Arrays Options'!D64 -> -26.39 | O11: =+'Risk Arrays Options'!E64 -> 488.8963906 | P11: =+'Risk Arrays Options'!F64 -> -26.39 | Q11: =+'Risk Arrays Options'!G64 -> 579.9797113 | R11: =+'Risk Arrays Options'!H64 -> -26.39 | S11: =+'Risk Arrays Options'!I64 -> 449.0115235 | T11: =+'Risk Arrays Options'!J64 -> -26.39 | U11: =+'Risk Arrays Options'!K64 -> 631.9274609 | V11: =+'Risk Arrays Options'!L64 -> -26.39 | W11: =+'Risk Arrays Options'!M64 -> 412.4547999 | X11: =+'Risk Arrays Options'!N64 -> -26.39 | Y11: =+'Risk Arrays Options'!O64 -> 688.7084944 | Z11: =+'Risk Arrays Options'!P64 -> -26.39 | AA11: =+'Risk Arrays Options'!Q64 -> -7.918999144 | AB11: =+'Risk Arrays Options'!R64 -> 67.16729414 | AC11: =IF(H11<0,MAX(M11:AB11),-1*MIN(M11:AB11)) -> 26.39 | AD11: =H11*AC11 -> 26.39
M12: =$K12*$G12*M$3*M$5 -> 0 | N12: 0 | O12: 0 | P12: 0 | Q12: 0 | R12: 0 | S12: 0 | T12: 0 | U12: 0 | V12: 0 | W12: 0 | X12: 0 | Y12: 0 | Z12: 0 | AA12: 0 | AB12: 0 | AC12: =IF(H12>0,MAX(M12:AB12),MIN(M12:AB12)) -> 0 | AD12: 0
M13: 0 | N13: 0 | O13: 0 | P13: 0 | Q13: 0 | R13: 0 | S13: 0 | T13: 0 | U13: 0 | V13: 0 | W13: 0 | X13: 0 | Y13: 0 | Z13: 0 | AA13: 0 | AB13: 0 | AC13: =IF(H13>0,MAX(M13:AB13),MIN(M13:AB13)) -> 0 | AD13: 0
M14: 0 | N14: 0 | O14: 0 | P14: 0 | Q14: 0 | R14: 0 | S14: 0 | T14: 0 | U14: 0 | V14: 0 | W14: 0 | X14: 0 | Y14: 0 | Z14: 0 | AA14: 0 | AB14: 0 | AC14: =IF(H14>0,MAX(M14:AB14),MIN(M14:AB14)) -> 0 | AD14: 0
M15: 0 | N15: 0 | O15: 0 | P15: 0 | Q15: 0 | R15: 0 | S15: 0 | T15: 0 | U15: 0 | V15: 0 | W15: 0 | X15: 0 | Y15: 0 | Z15: 0 | AA15: 0 | AB15: 0 | AC15: =IF(H15>0,MAX(M15:AB15),MIN(M15:AB15)) -> 0 | AD15: 0
M16: 0 | N16: 0 | O16: 0 | P16: 0 | Q16: 0 | R16: 0 | S16: 0 | T16: 0 | U16: 0 | V16: 0 | W16: 0 | X16: 0 | Y16: 0 | Z16: 0 | AA16: 0 | AB16: 0 | AC16: =IF(H16>0,MAX(M16:AB16),MIN(M16:AB16)) -> 0 | AD16: 0
L18: See 'Risk Arrays Options'.

Sheet Risk Arrays Options (hidden)
B2: Option OP5M Characteristics
C3: 202304 | D3: 202305 | E3: 202306 | F3: 202307
B4: Contractvolume | C4: 1 | D4: 1 | E4: 1 | F4: 1
B5: Underlying Price [S] | C5: 16761 | D5: 18143 | E5: 18365 | F5: 18222
B6: Strike [K] | C6: 10000 | D6: 10000 | E6: 10000 | F6: 10000
B7: Interest Rate [r] | C7: 0.04999 | D7: 0.05088 | E7: 0.05042 | F7: 0.05042
B8: Vola [Sigma] | C8: 0.490236 | D8: 0.565351 | E8: 0.547775 | F8: 0.500172
B9: Time to Maturity [T] | C9: =19.177999/250 -> 0.076711996 | D9: =41.780751/250 -> 0.167123004 | E9: =62.328748/250 -> 0.249314992 | F9: =83.561748/250 -> 0.334246992
B10: Scan Range | C10: 4220.59 | D10: 4220.59 | E10: 4220.59 | F10: 1527.95
B11: Volatility Scan Range | C11: 0.5 | D11: 0.5 | E11: 0.5 | F11: 0.5
B12: Look Ahead Time | C12: 3 | D12: 3 | E12: 3 | F12: 3
B13: Composite Delta | C13: -0.001771 | D13: -0.007389 | E13: -0.014102 | F13: -0.013019
B14: Current Option Price (Calculation) | C14: =bsPut(C5,C6,C8,C7,C9) -> 0.02928390499 | D14: =bsPut(D5,D6,D8,D7,D9) -> 4.826754598 | E14: 16.65201599 | F14: 26.37078583
B15: Current Option Price (SPAN) | C15: 0.03 | D15: 4.83 | E15: 16.64 | F15: 26.39
B16: Current Option Value (Calculation) | C16: =C14*C4 -> 0.02928390499 | D16: =D14*D4 -> 4.826754598 | E16: 16.65201599 | F16: 26.37078583
B17: Current Option Value (SPAN) | C17: =+C15*C4 -> 0.03 | D17: =+D15*D4 -> 4.83 | E17: 16.64 | F17: 26.39
B20: Option OP5M Risk Array
B21: Scenario | C21: 1 | D21: 2 | E21: 3 | F21: 4 | G21: 5 | H21: 6 | I21: 7 | J21: 8 | K21: 9 | L21: 10 | M21: 11 | N21: 12 | O21: 13 | P21: 14 | Q21: 15 | R21: 16
B22: Price Change Scenario | C22: 0 | D22: 0 | E22: =1/3 -> 0.3333333333 | F22: =1/3 -> 0.3333333333 | G22: =-1/3 -> -0.3333333333 | H22: =-1/3 -> -0.3333333333 | I22: =2/3 -> 0.6666666667 | J22: =2/3 -> 0.6666666667 | K22: =-2/3 -> -0.6666666667 | L22: =-2/3 -> -0.6666666667 | M22: 1 | N22: 1 | O22: -1 | P22: -1 | Q22: 3 | R22: -3
B23: Volatility Change Scenario | C23: 1 | D23: -1 | E23: 1 | F23: -1 | G23: 1 | H23: -1 | I23: 1 | J23: -1 | K23: 1 | L23: -1 | M23: 1 | N23: -1 | O23: 1 | P23: -1 | Q23: 0 | R23: 0
B24: Weight | C24: 1 | D24: 1 | E24: 1 | F24: 1 | G24: 1 | H24: 1 | I24: 1 | J24: 1 | K24: 1 | L24: 1 | M24: 1 | N24: 1 | O24: 1 | P24: 1 | Q24: 0.33 | R24: 0.33
B25: 202304
B26: Underlying Price | C26: =($C$5+(C$22*($C$10/$C$4))) -> 16761 | D26: =($C$5+(D$22*($C$10/$C$4))) -> 16761 | E26: 18167.86333 | F26: 18167.86333 | G26: 15354.13667 | H26: 15354.13667 | I26: 19574.72667 | J26: 19574.72667 | K26: 13947.27333 | L26: 13947.27333 | M26: 20981.59 | N26: 20981.59 | O26: 12540.41 | P26: 12540.41 | Q26: 29422.77 | R26: 4099.23
B27: Strike Price | C27: =$C$6 -> 10000 | D27: 10000 | E27: 10000 | F27: 10000 | G27: 10000 | H27: 10000 | I27: 10000 | J27: 10000 | K27: 10000 | L27: 10000 | M27: 10000 | N27: 10000 | O27: 10000 | P27: 10000 | Q27: 10000 | R27: 10000
B28: Interest Rate | C28: =$C$7 -> 0.04999 | D28: 0.04999 | E28: 0.04999 | F28: 0.04999 | G28: 0.04999 | H28: 0.04999 | I28: 0.04999 | J28: 0.04999 | K28: 0.04999 | L28: 0.04999 | M28: 0.04999 | N28: 0.04999 | O28: 0.04999 | P28: 0.04999 | Q28: 0.04999 | R28: 0.04999
B29: Volatility Scenario | C29: =IF($C$8+(C$23*$C$11)>0,$C$8+(C$23*$C$11),0.001) -> 0.990236 | D29: =IF($C$8+(D23*$C$11)>0,$C$8+(D23*$C$11),0.001) -> 0.001 | E29: 0.990236 | F29: 0.001 | G29: 0.990236 | H29: 0.001 | I29: 0.990236 | J29: 0.001 | K29: 0.990236 | L29: 0.001 | M29: 0.990236 | N29: 0.001 | O29: 0.990236 | P29: 0.001 | Q29: 0.490236 | R29: 0.490236
B30: Time | C30: =$C$9-(2/250) -> 0.068711996 | D30: =$C$9-(2/250) -> 0.068711996 | E30: 0.068711996 | F30: =$C$9-(2/250) -> 0.068711996 | G30: 0.068711996 | H30: 0.068711996 | I30: 0.068711996 | J30: 0.068711996 | K30: 0.068711996 | L30: 0.068711996 | M30: 0.068711996 | N30: 0.068711996 | O30: 0.068711996 | P30: 0.068711996 | Q30: 0.068711996 | R30: 0.068711996
B31: Scenario Option Price | C31: =bsPut(C26,C27,C29,C28,C30) -> 29.03622971 | D31: 0 | E31: 12.67126874 | F31: 0 | G31: 65.42716197 | H31: 0 | I31: 5.472939421 | J31: 0 | K31: 143.7425346 | L31: 0 | M31: 2.351214983 | N31: 0 | O31: 304.5480748 | P31: 0 | Q31: 5.772325285e-15 | R31: 5880.536141
B32: Scenario Option Value | C32: =C31*$C$4 -> 29.03622971 | D32: =D31*$C$4 -> 0 | E32: 12.67126874 | F32: 0 | G32: 65.42716197 | H32: 0 | I32: 5.472939421 | J32: 0 | K32: 143.7425346 | L32: 0 | M32: 2.351214983 | N32: 0 | O32: 304.5480748 | P32: 0 | Q32: 5.772325285e-15 | R32: =R31*$C$4 -> 5880.536141
B33: Current Option Value | C33: =$C$17 -> 0.03 | D33: 0.03 | E33: 0.03 | F33: 0.03 | G33: 0.03 | H33: 0.03 | I33: 0.03 | J33: 0.03 | K33: 0.03 | L33: 0.03 | M33: 0.03 | N33: 0.03 | O33: 0.03 | P33: =$C$17 -> 0.03 | Q33: 0.03 | R33: 0.03
B34: Risk Arrays | C34: =C$24*(C32-C33) -> 29.00622971 | D34: =D24*(D32-D33) -> -0.03 | E34: 12.64126874 | F34: -0.03 | G34: 65.39716197 | H34: -0.03 | I34: 5.442939421 | J34: -0.03 | K34: 143.7125346 | L34: -0.03 | M34: 2.321214983 | N34: -0.03 | O34: 304.5180748 | P34: -0.03 | Q34: -0.0099 | R34: 1940.567027
B35: 202305
B36: Underlying Price | C36: =($D$5+(C$22*($D$10/$D$4))) -> 18143 | D36: =($D$5+(D$22*($D$10/$D$4))) -> 18143 | E36: 19549.86333 | F36: 19549.86333 | G36: 16736.13667 | H36: 16736.13667 | I36: 20956.72667 | J36: 20956.72667 | K36: 15329.27333 | L36: 15329.27333 | M36: 22363.59 | N36: 22363.59 | O36: 13922.41 | P36: 13922.41 | Q36: 30804.77 | R36: 5481.23
B37: Strike Price | C37: =$D$6 -> 10000 | D37: =$D$6 -> 10000 | E37: 10000 | F37: 10000 | G37: 10000 | H37: 10000 | I37: 10000 | J37: 10000 | K37: 10000 | L37: 10000 | M37: 10000 | N37: 10000 | O37: 10000 | P37: 10000 | Q37: 10000 | R37: 10000
B38: Interest Rate | C38: =$D$7 -> 0.05088 | D38: =$D$7 -> 0.05088 | E38: 0.05088 | F38: 0.05088 | G38: 0.05088 | H38: 0.05088 | I38: 0.05088 | J38: 0.05088 | K38: 0.05088 | L38: 0.05088 | M38: 0.05088 | N38: 0.05088 | O38: 0.05088 | P38: 0.05088 | Q38: 0.05088 | R38: 0.05088
B39: Volatility Scenario | C39: =IF($D$8+(C$23*$D$11)>0,$D$8+(C$23*$D$11),0.001) -> 1.065351 | D39: =IF($D$8+(D$23*$D$11)>0,$D$8+(D$23*$D$11),0.001) -> 0.065351 | E39: 1.065351 | F39: 0.065351 | G39: 1.065351 | H39: 0.065351 | I39: 1.065351 | J39: 0.065351 | K39: 1.065351 | L39: 0.065351 | M39: 1.065351 | N39: 0.065351 | O39: 1.065351 | P39: 0.065351 | Q39: 0.565351 | R39: 0.565351
B40: Time | C40: =$D$9-(2/250) -> 0.159123004 | D40: =$D$9-(2/250) -> 0.159123004 | E40: 0.159123004 | F40: 0.159123004 | G40: 0.159123004 | H40: 0.159123004 | I40: 0.159123004 | J40: 0.159123004 | K40: 0.159123004 | L40: 0.159123004 | M40: 0.159123004 | N40: 0.159123004 | O40: 0.159123004 | P40: 0.159123004 | Q40: 0.159123004 | R40: 0.159123004
B41: Scenario Option Price | C41: =bsPut(C36,C37,C39,C38,C40) -> 204.118287 | D41: =bsPut(D36,D37,D39,D38,D40) -> 1.079797654e-114 | E41: 142.0577775 | F41: 5.417627591e-145 | G41: 294.0937104 | H41: 6.125774961e-86 | I41: 99.21394235 | J41: 2.233664311e-176 | K41: 424.4236302 | L41: 2.308163776e-59 | M41: 69.57293824 | N41: 1.657277152e-208 | O41: 612.5711591 | P41: 7.582627052e-36 | Q41: 0.0002214996915 | R41: 4484.283115
B42: Scenario Option Value | C42: =C41*$D$4 -> 204.118287 | D42: =D41*$D$4 -> 1.079797654e-114 | E42: 142.0577775 | F42: 5.417627591e-145 | G42: 294.0937104 | H42: 6.125774961e-86 | I42: 99.21394235 | J42: 2.233664311e-176 | K42: 424.4236302 | L42: 2.308163776e-59 | M42: 69.57293824 | N42: 1.657277152e-208 | O42: 612.5711591 | P42: 7.582627052e-36 | Q42: 0.0002214996915 | R42: 4484.283115
B43: Current Option Value | C43: =$D$17 -> 4.83 | D43: =$D$17 -> 4.83 | E43: 4.83 | F43: 4.83 | G43: 4.83 | H43: 4.83 | I43: 4.83 | J43: 4.83 | K43: 4.83 | L43: 4.83 | M43: 4.83 | N43: 4.83 | O43: 4.83 | P43: 4.83 | Q43: 4.83 | R43: 4.83
B44: Risk Arrays | C44: =C$24*(C42-C43) -> 199.288287 | D44: =D$24*(D42-D43) -> -4.83 | E44: 137.2277775 | F44: -4.83 | G44: 289.2637104 | H44: -4.83 | I44: 94.38394235 | J44: -4.83 | K44: 419.5936302 | L44: -4.83 | M44: 64.74293824 | N44: -4.83 | O44: 607.7411591 | P44: -4.83 | Q44: -1.593826905 | R44: 1478.219528
B45: 202306
B46: Underlying Price | C46: =($E$5+(C$22*($E$10/$E$4))) -> 18365 | D46: =($E$5+(D$22*($E$10/$E$4))) -> 18365 | E46: 19771.86333 | F46: 19771.86333 | G46: 16958.13667 | H46: 16958.13667 | I46: 21178.72667 | J46: 21178.72667 | K46: 15551.27333 | L46: 15551.27333 | M46: 22585.59 | N46: 22585.59 | O46: 14144.41 | P46: 14144.41 | Q46: 31026.77 | R46: 5703.23
B47: Strike Price | C47: =$E$6 -> 10000 | D47: =$E$6 -> 10000 | E47: 10000 | F47: 10000 | G47: 10000 | H47: 10000 | I47: 10000 | J47: 10000 | K47: 10000 | L47: 10000 | M47: 10000 | N47: 10000 | O47: 10000 | P47: 10000 | Q47: 10000 | R47: 10000
B48: Interest Rate | C48: =$E$7 -> 0.05042 | D48: =$E$7 -> 0.05042 | E48: 0.05042 | F48: 0.05042 | G48: 0.05042 | H48: 0.05042 | I48: 0.05042 | J48: 0.05042 | K48: 0.05042 | L48: 0.05042 | M48: 0.05042 | N48: 0.05042 | O48: 0.05042 | P48: 0.05042 | Q48: 0.05042 | R48: 0.05042
B49: Volatility Scenario | C49: =IF($E$8+(C$23*$E$11)>0,$E$8+(C$23*$E$11),0.001) -> 1.047775 | D49: =IF($E$8+(D$23*$E$11)>0,$E$8+(D$23*$E$11),0.001) -> 0.047775 | E49: 1.047775 | F49: 0.047775 | G49: 1.047775 | H49: 0.047775 | I49: 1.047775 | J49: 0.047775 | K49: 1.047775 | L49: 0.047775 | M49: 1.047775 | N49: 0.047775 | O49: 1.047775 | P49: 0.047775 | Q49: 0.547775 | R49: 0.547775
B50: Time | C50: =$E$9-(2/250) -> 0.241314992 | D50: =$E$9-(2/250) -> 0.241314992 | E50: 0.241314992 | F50: 0.241314992 | G50: 0.241314992 | H50: 0.241314992 | I50: 0.241314992 | J50: 0.241314992 | K50: 0.241314992 | L50: 0.241314992 | M50: 0.241314992 | N50: 0.241314992 | O50: 0.241314992 | P50: 0.241314992 | Q50: 0.241314992 | R50: 0.241314992
B51: Scenario Option Price | C51: =bsPut(C46,C47,C49,C48,C50) -> 393.1002794 | D51: =bsPut(D46,D47,D49,D48,D50) -> 3.952568512e-147 | E51: 301.9696438 | F51: 9.714290582e-185 | G51: 513.7700136 | H51: 2.489598984e-111 | I51: 232.9356872 | J51: 1.289191296e-223 | K51: 673.9249433 | L51: 4.383220833e-78 | M51: 180.4539551 | N51: 2.330489892e-263 | O51: 886.7430129 | P51: 1.987139547e-48 | Q51: 0.01295048952 | R51: 4258.175033
B52: Scenario Option Value | C52: =C51*$E$4 -> 393.1002794 | D52: =D51*$E$4 -> 3.952568512e-147 | E52: 301.9696438 | F52: 9.714290582e-185 | G52: 513.7700136 | H52: 2.489598984e-111 | I52: 232.9356872 | J52: 1.289191296e-223 | K52: 673.9249433 | L52: 4.383220833e-78 | M52: 180.4539551 | N52: 2.330489892e-263 | O52: 886.7430129 | P52: 1.987139547e-48 | Q52: 0.01295048952 | R52: 4258.175033
B53: Current Option Value | C53: =$E$17 -> 16.64 | D53: =$E$17 -> 16.64 | E53: 16.64 | F53: 16.64 | G53: 16.64 | H53: 16.64 | I53: 16.64 | J53: 16.64 | K53: 16.64 | L53: 16.64 | M53: 16.64 | N53: 16.64 | O53: 16.64 | P53: 16.64 | Q53: 16.64 | R53: 16.64
B54: Risk Arrays | C54: =C$24*(C52-C53) -> 376.4602794 | D54: =D$24*(D52-D53) -> -16.64 | E54: =E$24*(E52-E53) -> 285.3296438 | F54: =F$24*(F52-F53) -> -16.64 | G54: =G$24*(G52-G53) -> 497.1300136 | H54: =H$24*(H52-H53) -> -16.64 | I54: =I$24*(I52-I53) -> 216.2956872 | J54: =J$24*(J52-J53) -> -16.64 | K54: =K$24*(K52-K53) -> 657.2849433 | L54: =L$24*(L52-L53) -> -16.64 | M54: =M$24*(M52-M53) -> 163.8139551 | N54: =N$24*(N52-N53) -> -16.64 | O54: =O$24*(O52-O53) -> 870.1030129 | P54: =P$24*(P52-P53) -> -16.64 | Q54: =Q$24*(Q52-Q53) -> -5.486926338 | R54: =R$24*(R52-R53) -> 1399.706561
B55: 202307
B56: Underlying Price | C56: =($F$5+(C$22*($F$10/$F$4))) -> 18222 | D56: =($F$5+(D$22*($F$10/$F$4))) -> 18222 | E56: 18731.31667 | F56: 18731.31667 | G56: 17712.68333 | H56: 17712.68333 | I56: 19240.63333 | J56: 19240.63333 | K56: 17203.36667 | L56: 17203.36667 | M56: 19749.95 | N56: 19749.95 | O56: 16694.05 | P56: 16694.05 | Q56: 22805.85 | R56: 13638.15
B57: Strike Price | C57: =$F$6 -> 10000 | D57: =$F$6 -> 10000 | E57: 10000 | F57: 10000 | G57: 10000 | H57: 10000 | I57: 10000 | J57: 10000 | K57: 10000 | L57: 10000 | M57: 10000 | N57: 10000 | O57: 10000 | P57: 10000 | Q57: 10000 | R57: 10000
B58: Interest Rate | C58: =$F$7 -> 0.05042 | D58: =$F$7 -> 0.05042 | E58: 0.05042 | F58: 0.05042 | G58: 0.05042 | H58: 0.05042 | I58: 0.05042 | J58: 0.05042 | K58: 0.05042 | L58: 0.05042 | M58: 0.05042 | N58: 0.05042 | O58: 0.05042 | P58: 0.05042 | Q58: 0.05042 | R58: 0.05042
B59: Volatility Scenario | C59: =IF($F$8+(C$23*$F$11)>0,$F$8+(C$23*$F$11),0.001) -> 1.000172 | D59: =IF($F$8+(D$23*$F$11)>0,$F$8+(D$23*$F$11),0.001) -> 0.000172 | E59: 1.000172 | F59: 0.000172 | G59: 1.000172 | H59: 0.000172 | I59: 1.000172 | J59: 0.000172 | K59: 1.000172 | L59: 0.000172 | M59: 1.000172 | N59: 0.000172 | O59: 1.000172 | P59: 0.000172 | Q59: 0.500172 | R59: 0.500172
B60: Time | C60: =$F$9-(2/250) -> 0.326246992 | D60: =$F$9-(2/250) -> 0.326246992 | E60: 0.326246992 | F60: 0.326246992 | G60: 0.326246992 | H60: 0.326246992 | I60: 0.326246992 | J60: 0.326246992 | K60: 0.326246992 | L60: 0.326246992 | M60: 0.326246992 | N60: 0.326246992 | O60: 0.326246992 | P60: 0.326246992 | Q60: 0.326246992 | R60: 0.326246992
B61: Scenario Option Price | C61: =bsPut(C56,C57,C59,C58,C60) -> 558.8235342 | D61: =bsPut(D56,D57,D59,D58,D60) -> 0 | E61: 515.2863906 | F61: 0 | G61: 606.3697113 | H61: 0 | I61: 475.4015235 | J61: 0 | K61: 658.3174609 | L61: 0 | M61: 438.8447999 | N61: 0 | O61: 715.0984944 | P61: 0 | Q61: 2.393032898 | R61: 229.927255
B62: Scenario Option Value | C62: =C61*$F$4 -> 558.8235342 | D62: =D61*$F$4 -> 0 | E62: 515.2863906 | F62: 0 | G62: 606.3697113 | H62: 0 | I62: 475.4015235 | J62: 0 | K62: 658.3174609 | L62: 0 | M62: 438.8447999 | N62: 0 | O62: 715.0984944 | P62: 0 | Q62: 2.393032898 | R62: 229.927255
B63: Current Option Value | C63: =$F$17 -> 26.39 | D63: =$F$17 -> 26.39 | E63: 26.39 | F63: 26.39 | G63: 26.39 | H63: 26.39 | I63: 26.39 | J63: 26.39 | K63: 26.39 | L63: 26.39 | M63: 26.39 | N63: 26.39 | O63: 26.39 | P63: 26.39 | Q63: 26.39 | R63: 26.39
B64: Risk Arrays | C64: =C$24*(C62-C63) -> 532.4335342 | D64: =D$24*(D62-D63) -> -26.39 | E64: =E$24*(E62-E63) -> 488.8963906 | F64: =F$24*(F62-F63) -> -26.39 | G64: =G$24*(G62-G63) -> 579.9797113 | H64: =H$24*(H62-H63) -> -26.39 | I64: =I$24*(I62-I63) -> 449.0115235 | J64: =J$24*(J62-J63) -> -26.39 | K64: =K$24*(K62-K63) -> 631.9274609 | L64: =L$24*(L62-L63) -> -26.39 | M64: =M$24*(M62-M63) -> 412.4547999 | N64: =N$24*(N62-N63) -> -26.39 | O64: =O$24*(O62-O63) -> 688.7084944 | P64: =P$24*(P62-P63) -> -26.39 | Q64: =Q$24*(Q62-Q63) -> -7.918999144 | R64: =R$24*(R62-R63) -> 67.16729414

Sheet Spreads
C2: Portfolio Spread Matrix
E3: Long
E4: P5TC Tier3
C5: Short | D5: P5TC Tier2 | E5: Credit = 0.63 (Spread ID: 55369)
C9: Extract from Intercommodity Spread File
C10: Spread_ID | D10: Combined_Commodity_A | E10: Tier_A | F10: Combined_Commodity_B | G10: Tier_B | H10: RatioA | I10: RatioB | J10: Spread Credit
C11: 55369 | D11: P5TC | E11: 2 | F11: P5TC | G11: 3 | H11: 1527.953466 | I11: 4220.59 | J11: 0.6259

Sheet Intracommodity Credits
C2: ECC Technical Scaling Factor | E2: 100
C4: Product | D4: Combined Commodity | E4: Tier | F4: Call/Put | G4: Strike Price | H4: Contract Volume | I4: Net Position | J4: Scanning Range | K4: SMP | L4: Composite Delta | M4: Original Delta (Net) | N4: Scan Risk | O4: Short Option Minimum | P4: Ratio | Q4: Spread Credit | R4: Intracommodity Charge | S4: Number of Spreads | T4: Intracommodity Credit | U4: Intercommodity Credit | V4: SPAN Requirement | W4: Remaining Delta
B5: Intra Tiers | C5: P5TC | D5: P5TC | E5: Tier 3 | H5: 1 | I5: 100 | J5: =+Tiers!G8 -> 1527.953466 | K5: =+J5/H5 -> 1527.953466 | L5: 1 | M5: =((L5*I5*H5)+(L6*I6*H6))/$E$2 -> 0.25 | N5: =+'Risk Arrays and Scan Risk'!AD8 -> 38198.83665 | R5: =+Tiers!H8 -> 1263.240371 | S5: =+MIN(ABS(I5),ABS(I6)) -> 75 | T5: =+S5*R5 -> 94743.02784 | V5: =+ROUND((T5+N5)/100,2)*100 -> 132942 | W5: =+M5 -> 0.25
C6: P5TC | H6: 1 | I6: -75 | J6: =+Tiers!G11 -> 1527.953466 | K6: =+J6/H6 -> 1527.953466 | L6: 1
B10: Consolidation Combined Commodity | C10: P5TC | D10: P5TC | E10: Tier 2 | H10: 1 | I10: -50 | J10: =+'Risk Arrays and Scan Risk'!J7 -> 4220.594159 | K10: =+J10/H10 -> 4220.594159 | L10: 1 | M10: =(L10*I10*H10)/$E$2 -> -0.5 | N10: =+'Risk Arrays and Scan Risk'!AD7 -> 211029.7079 | P10: =+J11 -> 1527.953466 | Q10: =+Spreads!J11 -> 0.6259 | S10: =IF(M10*M11<0,ABS(M10/P10),0) -> 0.0003272350966 | U10: =K10*P10*$E$2*Q10*MIN($S$10:$S$11) -> 23908.65186 | V10: =N10-U10 -> 187121.0561 | W10: =M10-SIGN(M10)*P10*MIN(S10:S11) -> -0.4094941726
C11: P5TC | E11: Tier 3 | H11: 1 | I11: 25 | J11: =+'Risk Arrays and Scan Risk'!J8 -> 1527.953466 | K11: =+J11/H11 -> 1527.953466 | L11: 1 | M11: =(L11*I11*H11)/$E$2 -> 0.25 | N11: =+'Risk Arrays and Scan Risk'!AD8 -> 38198.83665 | P11: =+K10 -> 4220.594159 | S11: =IF(M10*M11<0,ABS(M11/P11),0) -> 5.923336635e-05 | U11: =K11*P11*$E$2*Q10*MIN($S$10:$S$11) -> 23908.65186 | V11: =+N11-U11 -> 14290.18479 | W11: =M11-SIGN(M11)*P11*MIN(S10:S11) -> 0
S12: SPAN Margin | V12: =T5+V10+V11 -> 296154.2687
